Workbook

Sheet Cover Page
A5: Montana-Dakota Utilities Co.
A6: Attachment O
A7: Actual Reported Costs for Twelve Months Ended December 31, 2013

Sheet True-Up
A1: Montana-Dakota Utilities Co.
A2: MISO Attachment O True-Up
A3: Twelve Months Ended December 31, 2013
A6: Annual Transmission Revenue Requirement (ATRR) True-Up
B7: Historic Year Actual ATRR | E7: 18297014.76
B8: Historic Year Projected ATRR | E8: 22223301
B9: Historic Year ATRR True-Up (Line 1 - Line 2) | E9: =E7-E8 -> -3926286.245
A11: Footnote FF: Calculation of Prior Year Divisor True-Up
B12: Historic Year Actual Divisor | E12: 735558 | F12: 1/
B13: Projected Year Divisor | E13: 738755
C14: Difference between Historic Year & Project Yr Divisor (Line 4 - Line 5) | E14: =E12-E13 -> -3197
B15: Prior Year Projected Annual Cost ($ per kw per yr.) | E15: 30.082
B16: Projected Year Divisor True-Up * Prior Year Projected Annual Cost | E16: =ROUND(E14*E15,0) -> -96172
A18: Total
B19: ATRR True-Up | E19: =E9 -> -3926286.245
B20: Divisor True-Up | E20: =E16 -> -96172
B21: Total 2013 True-Up | E21: =SUM(E19:E20) -> -4022458.245
A23: Interest on Historic Year True-Up 2/
B24: Average Monthly FERC Interest Rate on Refunds
B25: Interest for 24 Months
A27: Total True-Up | E27: =ROUND(E21+E25,0) -> -4022458
A30: 1/ For purposes of calculating the historic divisor for the divisor true-up, Montana-Dakota included
B31: the REC load.
C32: Montana-Dakota | E32: 486814
C33: REC | E33: 248744
C34: Total KW | E34: =SUM(E32:E33) -> 735558
A35: 2/ Interest will be applied in the Projected 2015 Attachment O submitted in September 2014.

Sheet Attachment O
L2: Attachment O
L3: page 1 of 5
C5: Formula Rate - Non-Levelized | E5: Rate Formula Template | J5: For the 12 months ended 12/31/13
E6: Utilizing FERC Form 1 Data
E8: Montana-Dakota Utilities Co.
A10: Line | J10: Allocated | N10: Workpaper
A11: No. | J11: Amount | N11: Reference #
A12: 1 | C12: GROSS REVENUE REQUIREMENT (page 3, line 31) | J12: =+J225 -> 22407901.71
C15: REVENUE CREDITS | D15: (Note T) | E15: Total | G15: Allocator
A16: 2 | C16: Account No. 454 | D16: (page 4, line 34) | E16: =J303 -> 1807970 | G16: TP | H16: =J251 -> 0.9524172064 | J16: =+H16*E16 -> 1721941.737
A17: 3 | C17: Account No. 456.1 | D17: (page 4, line 37) | E17: =J310 -> 2508297 | G17: =+G16 -> TP | H17: 0.9524172064 | J17: =+H17*E17 -> 2388945.221
A18: 4 | C18: Revenues from Grandfathered Interzonal Transactions | E18: 0 | G18: TP | H18: 0.9524172064 | J18: =+H18*E18 -> 0
A19: 5 | C19: Revenues from service provided by the ISO at a discount | E19: 0 | G19: TP | H19: 0.9524172064 | J19: =+H19*E19 -> 0
A20: 6 | C20: TOTAL REVENUE CREDITS (sum lines 2-5) | J20: =SUM(J16:J19) -> 4110886.958
A22: 6a | C22: Historic Year Actual ATRR
A23: 6b | C23: Projected ATRR from Prior Year | D23: Input from Prior Year
A24: 6c | C24: Prior Year ATRR True-Up | D24: (line 6a - line 6b) | J24: =J22-J23 -> 0
A25: 6d | C25: Prior Year Divisor True-Up | D25: (Note FF) | J25: =E392 -> 0
A26: 6e | C26: Interest on Prior Year True-Up
A28: 7 | C28: NET REVENUE REQUIREMENT | D28: (line 1 - line 6 + line 6c through 6e) | J28: =+J12-J20+J24+J25+J26 -> 18297014.76
C31: DIVISOR
A32: 8 | C32: Average of 12 coincident system peaks for requirements (RQ) service | H32: (Note A) | J32: 486814 | N32: 18
A33: 9 | C33: Plus 12 CP of firm bundled sales over one year not in line 8 | H33: (Note B) | J33: 0
A34: 10 | C34: Plus 12 CP of Network Load not in line 8 | H34: (Note C) | J34: 0
A35: 11 | C35: Less 12 CP of firm P-T-P over one year (enter negative) | H35: (Note D) | J35: 0
A36: 12 | C36: Plus Contract Demand of firm P-T-P over one year | J36: 0
A37: 13 | C37: Less Contract Demand from Grandfathered Interzonal Transactions over one year (enter negative) (Note S) | J37: 0
A38: 14 | C38: Less Contract Demands from service over one year provided by ISO at a discount (enter negative) | J38: 0
A39: 15 | C39: Divisor (sum lines 8-14) | J39: =SUM(J32:J38) -> 486814
A41: 16 | C41: Annual Cost ($/kW/Yr) | D41: (line 7 / line 15) | E41: =IF(J39>0,J28/J39,0) -> 37.58522712
A42: 17 | C42: Network & P-to-P Rate ($/kW/Mo) | D42: (line 16 / 12) | E42: =+E41/12 -> 3.13210226
E44: Peak Rate | J44: Off-Peak Rate
A46: 18 | C46: Point-To-Point Rate ($/kW/Wk) | D46: (line 16 / 52; line 16 / 52) | E46: =+E41/52 -> 0.7227928292 | J46: =+E41/52 -> 0.7227928292
A47: 19 | C47: Point-To-Point Rate ($/kW/Day) | D47: (line 16 / 260; line 16 / 365) | E47: =+E41/260 -> 0.1445585658 | F47: Capped at weekly rate | J47: =+E41/365 -> 0.102973225
A48: 20 | C48: Point-To-Point Rate ($/MWh) | D48: (line 16 / 4,160; line 16 / 8,760*1000) | E48: =+E41/4160*1000 -> 9.034910365 | F48: Capped at weekly and daily rates | J48: =+E41/8760*1000 -> 4.290551041
A50: 21 | C50: FERC Annual Charge($/MWh) | D50: (Note E) | E50: 0 | F50: Short Term | J50: =E50 -> 0 | K50: Short Term
A51: 22 | E51: 0 | F51: Long Term | J51: =E51 -> 0 | K51: Long Term
L79: Attachment O
L80: page 2 of 5
C82: Formula Rate - Non-Levelized | E82: Rate Formula Template | J82: =J5 -> For the 12 months ended 12/31/13
E83: Utilizing FERC Form 1 Data
E85: =E8 -> Montana-Dakota Utilities Co.
C86: (1) | D86: (2) | E86: (3) | H86: (4) | J86: (5)
D87: Form No. 1 | J87: Transmission | N87: Workpaper
A88: Line | D88: Page, Line, Col. | E88: Company Total | G88: Allocator | J88: (Col 3 times Col 4) | N88: Reference #
A89: No. | C89: RATE BASE:
C91: GROSS PLANT IN SERVICE (Note AA, Note DD)
A92: 1 | C92: Production | D92: 205.46.g | E92: 471677490 | G92: NA | N92: 1, 1b
A93: 2 | C93: Transmission | D93: 207.58.g | E93: 181842812 | G93: TP | H93: =J251 -> 0.9524172064 | J93: =+H93*E93 -> 173190223 | N93: 1, 1b
A94: 3 | C94: Distribution | D94: 207.75.g | E94: 242842041 | G94: NA | N94: 1, 1b
A95: 4 | C95: General & Intangible | D95: 205.5.g & 207.99.g | E95: =22753986+8726909 -> 31480895 | G95: W/S | H95: =J269 -> 0.1507003893 | J95: =+H95*E95 -> 4744183.132 | N95: 1, 1b
A96: 5 | C96: Common | D96: 356.1 | E96: 97091208 | G96: CE | H96: =L274 -> 0.1113824695 | J96: =+H96*E96 -> 10814258.51 | N96: 1, 1a, 1b
A97: 6 | C97: TOTAL GROSS PLANT (sum lines 1-5) | E97: =SUM(E92:E96) -> 1024934446 | G97: GP= | H97: =IF(J97>0,J97/E97,0) -> 0.1841568164 | J97: =SUM(J92:J96) -> 188748664.6
C99: ACCUMULATED DEPRECIATION (Note AA, Note DD)
A100: 7 | C100: =+C92 -> Production | D100: 219.20-24.c | E100: 245754882 | G100: =+G92 -> NA | H100: =+H92 ->  | N100: 1, 2, 2b
A101: 8 | C101: =+C93 -> Transmission | D101: 219.25.c | E101: 87058348 | G101: =+G93 -> TP | H101: 0.9524172064 | J101: =+H101*E101 -> 82915868.59 | N101: 1, 2, 2b
A102: 9 | C102: =+C94 -> Distribution | D102: 219.26.c | E102: 106448504 | G102: NA | N102: 1, 2, 2b
A103: 10 | C103: =+C95 -> General & Intangible | D103: 219.28.c & 200.21.c | E103: =9724512+6520498 -> 16245010 | G103: W/S | H103: 0.1507003893 | J103: =+H103*E103 -> 2448129.331 | N103: 1, 2, 2b
A104: 11 | C104: =+C96 -> Common | D104: 356.1 | E104: 41503012 | G104: CE | H104: 0.1113824695 | J104: =+H104*E104 -> 4622707.967 | N104: 1, 2, 2a, 2b
A105: 12 | C105: TOTAL ACCUM. DEPRECIATION (sum lines 7-11) | E105: =SUM(E100:E104) -> 497009756 | J105: =SUM(J100:J104) -> 89986705.89
C107: NET PLANT IN SERVICE (Note DD)
A108: 13 | C108: =+C100 -> Production | D108: (line 1- line 7) | E108: =E92-E100 -> 225922608
A109: 14 | C109: =+C101 -> Transmission | D109: (line 2- line 8) | E109: =E93-E101 -> 94784464 | J109: =J93-J101 -> 90274354.41
A110: 15 | C110: =+C102 -> Distribution | D110: (line 3 - line 9) | E110: =E94-E102 -> 136393537
A111: 16 | C111: =+C103 -> General & Intangible | D111: (line 4 - line 10) | E111: =E95-E103 -> 15235885 | J111: =J95-J103 -> 2296053.801
A112: 17 | C112: =+C104 -> Common | D112: (line 5 - line 11) | E112: =E96-E104 -> 55588196 | J112: =J96-J104 -> 6191550.544
A113: 18 | C113: TOTAL NET PLANT (sum lines 13-17) | E113: =SUM(E108:E112) -> 527924690 | G113: NP= | H113: =IF(J113>0,J113/E113,0) -> 0.1870758474 | J113: =SUM(J108:J112) -> 98761958.75
A115: 18a | C115: 100% CWIP Recovery for Commission Approved Order
C116: No. 679 Transmission Projects (Note DD) | D116: 216.b | E116: 1407658 | G116: N/A | H116: 1 | J116: =E116 -> 1407658 | N116: 15
C118: ADJUSTMENTS TO RATE BASE (Note F, Note EE)
A119: 19 | C119: Account No. 281 (enter negative) | D119: 273.8.k | E119: 0 | G119: =+G100 -> NA | H119: zero | J119: 0
A120: 20 | C120: Account No. 282 (enter negative) | D120: 275.2.k | E120: -138035371 | G120: NP | H120: =+H113 -> 0.1870758474 | J120: =E120*H120 -> -25823084 | N120: 3, 3a
A121: 21 | C121: Account No. 283 (enter negative) | D121: 277.9.k | E121: -17053870 | G121: NP | H121: =+H120 -> 0.1870758474 | J121: =E121*H121 -> -3190367.182 | N121: 3, 3a
A122: 22 | C122: Account No. 190 | D122: 234.8.c | E122: 18030471 | G122: =+G121 -> NP | H122: =+H121 -> 0.1870758474 | J122: =E122*H122 -> 3373065.642 | N122: 3, 3a
A123: 23 | C123: Account No. 255 (enter negative) | D123: 267.8.h | E123: 0 | G123: NP | H123: =+H121 -> 0.1870758474 | J123: =E123*H123 -> 0
A124: 23a | C124: RESERVED FOR FUTURE USE
A125: 23b | C125: Unamortized Balance of Abandoned Plant | D125: (Note CC, Note DD) | E125: 0 | G125: N/A | H125: 1 | J125: =E125*H125 -> 0
A126: 24 | C126: TOTAL ADJUSTMENTS (sum lines 19- 23b) | E126: =SUM(E119:E125) -> -137058770 | J126: =SUM(J119:J125) -> -25640385.54
A128: 25 | C128: LAND HELD FOR FUTURE USE (Note DD) | D128: 214.x.d (Note G) | E128: 0 | G128: =+G101 -> TP | H128: =+H101 -> 0.9524172064 | J128: =+H128*E128 -> 0
C130: WORKING CAPITAL (Note H)
A131: 26 | C131: CWC | D131: calculated | E131: =+E181/8 -> 3297649.125 | J131: =+J181/8 -> 1195318.528
A132: 27 | C132: Materials & Supplies (Note G, Note DD) | D132: 227.8.c & .16.c | E132: 350980 | G132: TE | H132: =J261 -> 0.825480835 | J132: =+H132*E132 -> 289727.2635 | N132: 4
A133: 28 | C133: Prepayments (Account 165, Note DD) | D133: 111.57.c | E133: 1864263 | G133: GP | H133: =+H97 -> 0.1841568164 | J133: =+H133*E133 -> 343316.7391 | N133: 5
A134: 29 | C134: TOTAL WORKING CAPITAL (sum lines 26 - 28) | E134: =E131+E132+E133 -> 5512892.125 | J134: =J131+J132+J133 -> 1828362.531
A136: 30 | C136: RATE BASE (sum lines 18, 18a, 24, 25, & 29) | E136: =+E134+E128+E126+E113+E116 -> 397786470.1 | J136: =+J134+J128+J126+J113+J116 -> 76357593.74
L159: Attachment O
L160: page 3 of 5
C162: Formula Rate - Non-Levelized | E162: Rate Formula Template | J162: =J5 -> For the 12 months ended 12/31/13
E163: Utilizing FERC Form 1 Data
E165: =E8 -> Montana-Dakota Utilities Co.
C166: (1) | D166: (2) | E166: (3) | H166: (4) | J166: (5)
A168: Line | D168: Form No. 1 | J168: Transmission | N168: Workpaper
A169: No. | D169: Page, Line, Col. | E169: Company Total | G169: Allocator | J169: (Col 3 times Col 4) | N169: Reference #
C171: O&M (Note BB)
A172: 1 | C172: Transmission | D172: 321.112.b | E172: 10601838 | G172: TE | H172: =J261 -> 0.825480835 | J172: =+H172*E172 -> 8751614.084 | N172: 6
A173: 1a | C173: Less LSE Expenses included in Transmission O&M Accounts (Note V) | E173: 489820 | H173: 1 | J173: =+H173*E173 -> 489820 | N173: 6
A174: 2 | C174: Less Account 565 | D174: 321.96.b | E174: 1705765 | G174: TE | H174: =+H172 -> 0.825480835 | J174: =+H174*E174 -> 1408076.316 | N174: 6
A175: 3 | C175: A&G | D175: 323.197.b | E175: 18554979 | G175: W/S | H175: =+H103 -> 0.1507003893 | J175: 2796242.559 | N175: 7
A176: 4 | C176: Less FERC Annual Fees | E176: 187914 | G176: =+G175 -> W/S | H176: =+H175 -> 0.1507003893 | J176: 28318.71295 | N176: 8
A177: 5 | C177: Less EPRI & Reg. Comm. Exp. & Non-safety Ad. (Note I) | E177: 392125 | G177: =+G176 -> W/S | H177: =+H176 -> 0.1507003893 | J177: 59093.39015 | N177: 8
A178: 5a | C178: Plus Transmission Related Reg. Comm. Exp. (Note I) | E178: 0 | G178: =+G172 -> TE | H178: =+H172 -> 0.825480835 | J178: =+H178*E178 -> 0
A179: 6 | C179: Common | D179: =+D104 -> 356.1 | E179: 0 | G179: CE | H179: =+H104 -> 0.1113824695 | J179: 0
A180: 7 | C180: Transmission Lease Payments | E180: 0 | H180: 1 | J180: 0
A181: 8 | C181: TOTAL O&M (sum lines 1, 3, 5a, 6, 7 less lines 1a, 2, 4, 5) | E181: =+E172-E173-E174+E175-E176-E177+E178+E179+E180 -> 26381193 | J181: =+J172-J173-J174+J175-J176-J177+J178+J179+J180 -> 9562548.224
C183: DEPRECIATION AND AMORTIZATION EXPENSE (Note AA)
A184: 9 | C184: =+C172 -> Transmission | D184: 336.7.b | E184: 3336016 | G184: TP | H184: =+H128 -> 0.9524172064 | J184: =+H184*E184 -> 3177279.039 | N184: 9
A185: 9a | C185: Abandoned Plant Amortization | D185: (Note CC) | E185: 0 | G185: N/A | H185: 1 | J185: =+H185*E185 -> 0
A186: 10 | C186: General & Intangible | D186: 336.10.f & 336.1.f | E186: 948145 | G186: W/S | H186: =+H175 -> 0.1507003893 | J186: =+H186*E186 -> 142885.8206 | N186: 9
A187: 11 | C187: =+C179 -> Common | D187: 336.11.b | E187: 1120695 | G187: CE | H187: =+H179 -> 0.1113824695 | J187: =+H187*E187 -> 124825.7766 | N187: 9
A188: 12 | C188: TOTAL DEPRECIATION (Sum lines 9 - 11) | E188: =SUM(E184:E187) -> 5404856 | J188: =SUM(J184:J187) -> 3444990.636
C190: TAXES OTHER THAN INCOME TAXES (Note J)
C191: LABOR RELATED
A192: 13 | C192: Payroll | D192: 263.i | E192: 2116136 | G192: W/S | H192: =+H186 -> 0.1507003893 | J192: =+H192*E192 -> 318902.519 | N192: 9
A193: 14 | C193: Highway and vehicle | D193: =+D192 -> 263.i | E193: 2596 | G193: =+G192 -> W/S | H193: =+H192 -> 0.1507003893 | J193: =+H193*E193 -> 391.2182106 | N193: 9
A194: 15 | C194: PLANT RELATED
A195: 16 | C195: Property | D195: 263.i | E195: 6229955 | G195: GP | H195: =+H97 -> 0.1841568164 | J195: =+H195*E195 -> 1147288.679 | N195: 9
A196: 17 | C196: Gross Receipts | D196: 263.i | E196: -60205 | G196: =+G119 -> NA | H196: zero | J196: 0 | N196: 9
A197: 18 | C197: Other | D197: =+D196 -> 263.i | E197: 1122898 | G197: =+G195 -> GP | H197: =+H195 -> 0.1841568164 | J197: =+H197*E197 -> 206789.3209 | N197: 9
A198: 19 | C198: Payments in lieu of taxes | E198: 92988 | G198: GP | H198: =+H195 -> 0.1841568164 | J198: =+H198*E198 -> 17124.37405 | N198: 9
A199: 20 | C199: TOTAL OTHER TAXES (sum lines 13 - 19) | E199: =SUM(E192:E198) -> 9504368 | J199: =SUM(J192:J198) -> 1690496.112
C202: INCOME TAXES | D202: (Note K)
A203: 21 | C203: T=1 - {[(1 - SIT) * (1 - FIT)] / (1 - SIT * FIT * p)} = | E203: =IF(E349>0,1-(((1-E350)*(1-E349))/(1-E350*E349*E351)),0) -> 0.381135
A204: 22 | C204: CIT=(T/1-T) * (1-(WCLTD/R)) = | E204: =IF(J293>0,(E203/(1-E203))*(1-J290/J293),0) -> 0.4444337689
C205: where WCLTD=(page 4, line 27) and R= (page 4, line 30)
C206: and FIT, SIT & p are as given in footnote K.
A207: 23 | C207: 1 / (1 - T) = (from line 21) | E207: =IF(E203>0,1/(1-E203),0) -> 1.615861294
A208: 24 | C208: Amortized Investment Tax Credit (266.8f) (enter negative) | E208: -46505
A210: 25 | C210: Income Tax Calculation = line 22 * line 28 | E210: =E204*E214 -> 15495100.36 | G210: NA | J210: =E204*J214 -> 2974381.149
A211: 26 | C211: ITC adjustment (line 23 * line 24) | E211: =E207*E208 -> -75145.6295 | G211: NP | H211: =H113 -> 0.1870758474 | J211: =H211*E211 -> -14057.93232
A212: 27 | C212: Total Income Taxes | D212: (line 25 plus line 26) | E212: =+E210+E211 -> 15419954.73 | J212: =+J210+J211 -> 2960323.216
A214: 28 | C214: RETURN | E214: =+$J293*E136 -> 34864813.25 | G214: NA | J214: =+$J293*J136 -> 6692518.338
C215: [ Rate Base (page 2, line 30) * Rate of Return (page 4, line 30)]
A217: 29 | C217: REV. REQUIREMENT (sum lines 8, 12, 20, 27, 28) | E217: =+E214+E212+E199+E188+E181 -> 91575184.98 | J217: =+J214+J212+J199+J188+J181 -> 24350876.53
A218: 30 | C218: LESS ATTACHMENT GG ADJUSTMENT [Attachment GG, page 2, line 3, column 10] (Note W)
C219: [Revenue Requirement for facilities included on page 2, line 2, and also
C220: included in Attachment GG] | E220: 1754830 | J220: =+E220 -> 1754830
A222: 30a | C222: LESS ATTACHMENT MM ADJUSTMENT [Attachment MM, page 2, line 3, column 14] (Note Y)
C223: [Revenue Requirement for facilities included on page 2, line 2, and also
C224: included in Attachment MM] | E224: 188144.8125 | J224: =+E224 -> 188144.8125
A225: 31 | C225: REV. REQUIREMENT TO BE COLLECTED UNDER ATTACHMENT O | E225: =+E217-E220-E224 -> 89632210.16 | J225: =+J217-J220-J224 -> 22407901.71
C226: (line 29 - line 30 - line30a)
L235: Attachment O
L236: page 4 of 5
C238: Formula Rate - Non-Levelized | E238: Rate Formula Template | J238: =J5 -> For the 12 months ended 12/31/13
E239: Utilizing FERC Form 1 Data
E241: =E8 -> Montana-Dakota Utilities Co.
D242: SUPPORTING CALCULATIONS AND NOTES
A243: Line
A244: No. | C244: TRANSMISSION PLANT INCLUDED IN ISO RATES | N244: Workpaper
N245: Reference #
A246: 1 | C246: Total transmission plant (page 2, line 2, column 3) | J246: =E93 -> 181842812
A247: 2 | C247: Less transmission plant excluded from ISO rates (Note M) | J247: 0
A248: 3 | C248: Less transmission plant included in OATT Ancillary Services (Note N ) | J248: 8652589 | N248: 10
A249: 4 | C249: Transmission plant included in ISO rates (line 1 less lines 2 & 3) | J249: =J246-J247-J248 -> 173190223
A251: 5 | C251: Percentage of transmission plant included in ISO Rates (line 4 divided by line 1) | I251: TP= | J251: =IF(J246>0,J249/J246,0) -> 0.9524172064
N252: Please fill out info requested in the box below
C253: TRANSMISSION EXPENSES
N254: Schedule 1 Recoverable Expenses
A255: 6 | C255: Total transmission expenses (page 3, line 1, column 3) | J255: =E172 -> 10601838
A256: 7 | C256: Less transmission expenses included in OATT Ancillary Services (Note L) | J256: 1412993 | N256: 1412993 | O256: Acct 561.1 - 561.3, 561.BA included in Line 7
A257: 8 | C257: Included transmission expenses (line 6 less line 7) | J257: =+J255-J256 -> 9188845 | N257: 707859 | O257: Acct 561.BA for Schedule 24
N258: =N256-N257 -> 705134 | O258: Acct 561.1 - 561.3 available for Schedule 1
A259: 9 | C259: Percentage of transmission expenses after adjustment (line 8 divided by line 6) | J259: =IF(J255>0,J257/J255,0) -> 0.8667218835 | O259: Revenue Credits for Sched 1 Acct 561.1 - 561.3
A260: 10 | C260: Percentage of transmission plant included in ISO Rates (line 5) | I260: TP | J260: =J251 -> 0.9524172064 | N260: 0 | O260: transactions <1 yr
A261: 11 | C261: Percentage of transmission expenses included in ISO Rates (line 9 times line 10) | I261: TE= | J261: =+J260*J259 -> 0.825480835 | N261: 0 | O261: non-firm
N262: 52567 | O262: transactions w/ load not in divisor
C263: WAGES & SALARY ALLOCATOR (W&S) | N263: =SUM(N260:N262) -> 52567 | O263: total Revenue Credits
D264: Form 1 Reference | E264: $ | F264: TP | H264: Allocation | N264: =N258-N263 -> 652567 | O264: Net Schedule 1 Expenses (Acct 561.1-561.3 minus Credits)
A265: 12 | C265: Production | D265: 354.20.b | E265: 7937303 | F265: 0 | H265: =E265*F265 -> 0 | N265: 12
A266: 13 | C266: Transmission | D266: 354.21.b | E266: 3367715 | F266: =+J251 -> 0.9524172064 | H266: =E266*F266 -> 3207469.712 | N266: 12
A267: 14 | C267: Distribution | D267: 354.23.b | E267: 8033499 | F267: 0 | H267: =E267*F267 -> 0 | J267: W&S Allocator | N267: 12
A268: 15 | C268: Other | D268: 354.24,25,26.b | E268: 1945235 | F268: 0 | H268: =E268*F268 -> 0 | J268: ($ / Allocation) | N268: 12
A269: 16 | C269: Total (sum lines 12-15) | E269: =SUM(E265:E268) -> 21283752 | H269: =SUM(H265:H268) -> 3207469.712 | I269: = | J269: =IF(H269>0,H269/E269,0) -> 0.1507003893 | K269: = | L269: WS
C271: COMMON PLANT ALLOCATOR (CE) (Note O)
E272: $ | H272: % Electric | J272: =+J267 -> W&S Allocator
A273: 17 | C273: Electric | D273: 200.3.c | E273: 1057102842 | H273: (line 17 / line 20) | J273: (line 16) | L273: CE | N273: 13
A274: 18 | C274: Gas | D274: 201.3.d | E274: 373156431 | H274: =IF(E276>0,E273/E276,0) -> 0.7390987508 | I274: * | J274: =J269 -> 0.1507003893 | K274: = | L274: =J274*H274 -> 0.1113824695 | N274: 13
A275: 19 | C275: Water | D275: 201.3.e | E275: 0
A276: 20 | C276: Total (sum lines 17 - 19) | E276: =E273+E274+E275 -> 1430259273
C278: RETURN (R) | J278: $
A279: 21 | D279: Long Term Interest (117, sum of 62.c through 66.c) | J279: =18140295+189843+719510 -> 19049648 | N279: 16
A281: 22 | D281: Preferred Dividends (118.29c) (positive number) | J281: 685003 | N281: 16
C283: Development of Common Stock:
A284: 23 | D284: Proprietary Capital (112.16.c) (Note DD) | J284: =2687923159+15000000 -> 2702923159 | N284: 16
A285: 24 | D285: Less Preferred Stock (line 28) (Note DD) | J285: =-E291 -> -15000000
A286: 25 | D286: Less Account 123.1 (225.42.(g)) (enter negative) (Note DD) | J286: -2294529877 | N286: 16
A287: 26 | D287: Common Stock | E287: (sum lines 23-25) (Note DD) | J287: =+J284+J285+J286 -> 393393282
H288: Cost
E289: $ | F289: % | H289: (Note P) | J289: Weighted
A290: 27 | C290: Long Term Debt (112, sum of 18.c through 21.c) (Note DD) | E290: 372428596 | F290: =IF($E$293>0,E290/$E$293,0) -> 0.4769699806 | H290: =IF(E290>0,J279/E290,0) -> 0.05114979946 | J290: =H290*F290 -> 0.02439691886 | K290: =WCLTD | N290: 16
A291: 28 | C291: Preferred Stock (112.3.c) (Note DD) | E291: 15000000 | F291: =IF($E$293>0,E291/$E$293,0) -> 0.0192105273 | H291: =IF(E291>0,J281/E291,0) -> 0.04566686667 | J291: =H291*F291 -> 0.0008772845886 | N291: 16
A292: 29 | C292: Common Stock (line 26) (Note DD) | E292: =J287 -> 393393282 | F292: =IF($E$293>0,E292/$E$293,0) -> 0.5038194921 | H292: 0.1238 | J292: =H292*F292 -> 0.06237285312
A293: 30 | C293: Total (sum lines 27-29) (Note DD) | E293: =E292+E291+E290 -> 780821878 | J293: =SUM(J290:J292) -> 0.08764705657 | K293: =R
C296: REVENUE CREDITS
J297: Load
C298: ACCOUNT 447 (SALES FOR RESALE) | E298: (310-311) | F298: (Note Q)
A299: 31 | C299: a. Bundled Non-RQ Sales for Resale (311.x.h) | J299: 0
A300: 32 | C300: b. Bundled Sales for Resale included in Divisor on page 1 | J300: 0
A301: 33 | C301: Total of (a)-(b) | J301: =+J299-J300 -> 0
A303: 34 | C303: ACCOUNT 454 (RENT FROM ELECTRIC PROPERTY) (Note R) | J303: 1807970 | N303: 17
... 82 more rows

Sheet Notes
A1: Montana-Dakota Utilities Co.
A2: Notes to MISO Attachment O
A3: Annual True-Up 2013
A4: Actuals for Twelve Months Ended December 31, 2013
A7: Page 1, Line 15
B8: Divisor
C9: Projected 2013 divisor also included the WAPA and Basin load of 251,397 kw (in Line 10) for a total divisor of 738,755.
C11: Actual 2013 divisor only reflects Montana-Dakota's average 12 coincident peaks and does not include the WAPA and Basin load for 2013 pursuant to previous discussions between MISO and Montana-Dakota.
A14: Page 4, Line 36
B15: Transmission charges for all transmission transactions included in Divisor on Page 1
C16: Projected 2013 Other Electric Revenues (Line 36) included the revenue received from the REC Load included in Divisor 1 of $373,950
C18: The corresponding revenue received from WAPA and Basin for the transmission of electricity has also been excluded from Other Electric Revenues consistent with the exclusion from the Divisor.
A21: Page 4, Lines 36a
B22: Transmission charges from Schedules associated with Attachment GG
C23: Projected 2013 Other Electric Revenues (Line 36a) included the revenue requirement of Attachment GG
C25: Montana-Dakota did not include the revenue received from Attachment GG in Other Electric Revenues (Line 36a). The revenue received is included along with expenses in a Regulatory Asset account. Therefore Montana-Dakota did not include any revenue received from Other Electric Revenues for Attachment GG.
A28: Page 4, Lines 36b
B29: Transmission charges from Schedules associated with Attachment MM
C30: Projected 2013 Other Electric Revenues (Line 36b) included the revenue requirement of Attachment MM
C32: Montana-Dakota did not include the revenue received from Attachment MM in Other Electric Revenues (Line 36b). The revenue received is included in Acct 417 Revenues From Nonutlity Operations. Therefore Montana-Dakota did not include any revenue received from Other Electric Revenues for Attachment MM.

Sheet Accounting Changes
A1: Montana-Dakota Utilities Co.
A2: MISO Attachment O True-Up – 2013
A3: Summary of Accounting Changes
A6: “Accounting Changes” as defined by Section II Para E 8 of the final tariff are listed below:
A8: · Accounting change to use FERC major account 106 – Completed Construction Not Classified. With the conversion to a new construction and fixed asset system software called PowerPlan, the Company was able to take advantage of the automatic close process of in-service construction costs not yet unitized to be recorded in plant in service (FERC 106) and begin depreciation. The effect was to show more construction costs as plant in service rather than work in progress on the balance sheet and allowed us to record more timely depreciation expense on the income statement.
A10: · Income Tax election for Electric Distribution repairs deduction. With this election we are allowed to deduct certain financial booked capital construction in-service depreciable costs for income tax purposes under the repairs guidelines of the IRS regulations. This results in current income tax that are lower due to higher deductible expenses for tax than book thus creating a larger deferred income tax liability on the balance sheet and an improved cash flow position.
A12: · KVAR penalty revenue formerly recorded as demand revenue in 4001 was recorded in 4560 (Other electric revenue) beginning 1/1/13 to better reflect type of revenue.
A14: · Late payment revenues formerly recorded as 4190 (Interest Income) were recorded as 4500 (Forfeited discounts) beginning 1/1/13 to better reflect type of revenue.

Sheet All Generic Att O Filings
B2: Generic Attachment O Revisions
B4: FERC Rate Schedule or Tariff Number | C4: FERC Proceeding | D4: Date Filed
B5: Midwest ISO FERC Electric Tariff Original Volume No. 1 | C5: ER98-1438-000 | D5: 1998-01-05
B6: Midwest ISO FERC Electric Tariff First Revised Volume No. 1 | C6: ER98-1438-007 | D6: 2000-11-20
B7: Midwest ISO FERC Electric Tariff Second Revised Volume No. 1 | C7: ER04-458-004 | D7: 2004-11-08
B8: Midwest ISO FERC Electric Tariff Second Revised Volume No. 1 | C8: ER04-895-000 | D8: 2004-05-28
B9: Midwest ISO FERC Electric Tariff Second Revised Volume No. 1 | C9: ER05-122-000 | D9: 2004-10-29
B10: Midwest ISO FERC Electric Tariff Third Revised Volume No. 1 | C10: ER05-1085-001; ER04-458-008 | D10: 2005-09-06
B11: Midwest ISO FERC Electric Tariff Third Revised Volume No. 1 | C11: ER04-691-014; EL04-104-013; EL04-104-032 | D11: 2004-12-22
B12: Midwest ISO FERC Electric Tariff Third Revised Volume No. 1 | C12: ER04-691-034; EL04-104-013; EL04-104-032 | D12: 2005-04-06
B13: Midwest ISO FERC Electric Tariff Third Revised Volume No. 1 | C13: ER06-159-000 | D13: 2005-11-04
B14: Midwest ISO FERC Electric Tariff Third Revised Volume No. 1 | C14: ER07-113-000 | D14: 2006-10-31
B15: Midwest ISO FERC Electric Tariff Third Revised Volume No. 1 | C15: ER07-113-002 | D15: 2007-03-23
B16: Midwest ISO FERC Electric Tariff Fourth Revised Volume No. 1 | C16: OA08-4-001 | D16: 2008-08-13
B17: Midwest ISO FERC Electric Tariff Fourth Revised Volume No. 1 | C17: ER09-15-001 | D17: 2008-10-01
B18: Midwest ISO FERC Electric Tariff Third Revised Volume No. 1 | C18: ER09-91-000 | D18: 2008-10-17
B19: Midwest ISO FERC Electric Tariff Fourth Revised Volume No. 1 | C19: ER09-91-000; ER09-571-000 | D19: 2009-01-15
B20: Midwest ISO FERC Electric Tariff Fourth Revised Volume No. 1 | C20: ER09-1657-000 | D20: 2009-08-31
B21: Midwest ISO FERC Electric Tariff Fourth Revised Volume No. 1 | C21: ER09-1779-000 | D21: 2009-09-30
B22: Midwest ISO FERC Electric Tariff Fourth Revised Volume No. 1 | C22: ER10-1492-000 | D22: 2010-06-18
B23: Midwest ISO FERC Electric Tariff Fifth Revised Volume No. 1 (Midwest Independent Transmission System - FERC Electric Tariff) | C23: ER10-1997-000 | D23: 2010-07-28
B24: Midwest ISO FERC Electric Tariff Fifth Revised Volume No. 1 (Midwest Independent Transmission System - FERC Electric Tariff) | C24: ER10-1997-001 | D24: 2012-09-20
B25: Midwest ISO FERC Electric Tariff Fifth Revised Volume No. 1 (Midwest Independent Transmission System - FERC Electric Tariff) | C25: ER11-2700-000 | D25: 2011-01-19
B26: Midwest ISO FERC Electric Tariff Fifth Revised Volume No. 1 (Midwest Independent Transmission System - FERC Electric Tariff) | C26: ER11-2700-004 | D26: 6/13/2011 (5/24/12 settlement filed)
B27: Midwest ISO FERC Electric Tariff Fifth Revised Volume No. 1 (Midwest Independent Transmission System - FERC Electric Tariff) | C27: ER11-3251 | D27: 2011-03-31
B28: Midwest ISO FERC Electric Tariff Fifth Revised Volume No. 1 (Midwest Independent Transmission System - FERC Electric Tariff) | C28: ER11-3704 | D28: 2011-06-03
B29: Midwest ISO FERC Electric Tariff Fifth Revised Volume No. 1 (Midwest Independent Transmission System - FERC Electric Tariff) | C29: ER12-297 | D29: 2011-10-31
B30: Midwest ISO FERC Electric Tariff Fifth Revised Volume No. 1 (Midwest Independent Transmission System - FERC Electric Tariff) | C30: ER12-310 | D30: 2011-11-01
B31: Midwest ISO FERC Electric Tariff Fifth Revised Volume No. 1 (Midwest Independent Transmission System - FERC Electric Tariff) | C31: ER12-578 | D31: 2011-12-08
B32: Midwest ISO FERC Electric Tariff Fifth Revised Volume No. 1 (Midwest Independent Transmission System - FERC Electric Tariff) | C32: ER12-1667 | D32: 2012-04-30
B33: Midwest ISO FERC Electric Tariff Fifth Revised Volume No. 1 (Midwest Independent Transmission System - FERC Electric Tariff) | C33: ER13-307 | D33: 2013-01-01
B34: Midwest ISO FERC Electric Tariff Fifth Revised Volume No. 1 (Midwest Independent Transmission System - FERC Electric Tariff) | C34: ER13-674 | D34: 2013-01-01
B35: Midwest ISO FERC Electric Tariff Fifth Revised Volume No. 1 (Midwest Independent Transmission System - FERC Electric Tariff) | C35: ER13-674-002 | D35: 2013-01-01
B36: Midwest ISO FERC Electric Tariff Fifth Revised Volume No. 1 (Midwest Independent Transmission System - FERC Electric Tariff) | C36: ER13-751 | D36: 2013-01-01
B37: Midwest ISO FERC Electric Tariff Fifth Revised Volume No. 1 (Midwest Independent Transmission System - FERC Electric Tariff) | C37: ER13-1547 | D37: 2013-12-19
B38: Midwest ISO FERC Electric Tariff Fifth Revised Volume No. 1 (Midwest Independent Transmission System - FERC Electric Tariff) | C38: ER13-1827 | D38: 2013-12-19

Sheet Reconcile FF1 to Plant (1)
L1: Workpaper Cross Reference Page 1
A3: Montana-Dakota Utilities Co.
A4: MISO Attachment O Annual True-up
A5: Plant in Service & Accumulated Reserve (Workpaper for Page 2 of 5)
A6: Reconciliation of Form 1
A7: Twelve Months Ended December 31, 2013
E10: Form 1 Page, | G10: Form 1 | I10: Exclude
A11: Rate Base | E11: Line, Col. | G11: Ending Balance | I11: AROs | K11: Balance 2/
B12: Gross Plant in Service
C13: Production | E13: 205.46.g | G13: 560006217
C14: Steam Production | E14: 205.15.g | I14: 854230 | J14: 1/
C15: Other Production | E15: 205.44.g | I15: 3142677 | J15: 1/
C16: Production | G16: =SUM(G13:G15) -> 560006217 | I16: =SUM(I13:I15) -> 3996907 | K16: =G16-I16 -> 556009310
C17: Transmission | E17: 207.58.g | G17: 196823641 | I17: 797 | J17: 1/ | K17: 196822844
C18: Distribution | E18: 207.75.g | G18: 308202056 | I18: 39748 | J18: 1/ | K18: 308162308
C19: General & Intangible | E19: 205.5.g & | G19: 9141165 | K19: 9141165
E20: 207.99.g | G20: 25590389 | K20: 25590389
C21: Common | E21: 356.1 | G21: 115748847 | I21: 7270 | J21: 1/ | K21: 115741577
B22: Total Gross Plant | G22: =SUM(G16:G21) -> 1215512315 | I22: =SUM(I16:I21) -> 4044722 | K22: =SUM(K16:K21) -> 1211467593
B24: Accumulated Depreciation
C25: Production | E25: 219.20-24.c | G25: =222163669+37277088 -> 259440757
C26: Steam Production | I26: ='Recon FF1 to Acc Res (2)'!I12 -> 560247 | J26: 1/
C27: Other Production | I27: ='Recon FF1 to Acc Res (2)'!I13 -> 567777 | J27: 1/
C28: Production | G28: =SUM(G25:G27) -> 259440757 | I28: =SUM(I25:I27) -> 1128024 | K28: =G28-I28 -> 258312733
C29: Transmission | E29: 219.25.c | G29: 91945558 | I29: ='Recon FF1 to Acc Res (2)'!I15 -> 462 | J29: 1/ | K29: =G29-I29 -> 91945096
C30: Distribution | E30: 219.26.c | G30: 130709243 | I30: ='Recon FF1 to Acc Res (2)'!I16 -> 33066 | J30: 1/ | K30: 130676177
C31: General & Intangible | E31: 219.28.c & | G31: 10980004 | K31: 10980004
E32: 200.21.c | G32: 6774890 | K32: 6774890
C33: Common | E33: 356.1 | G33: 47516194 | I33: 4723 | J33: 1/ | K33: =G33-I33 -> 47511471
B34: Total Accumulated Depreciation | G34: =SUM(G28:G33) -> 547366646 | I34: =SUM(I28:I33) -> 1166275 | K34: =SUM(K28:K33) -> 546200371
A38: 1/ Exclude Asset Retirement Costs per Note AA, page 5 of Attachment O (ARO separately identified in FERC Form 1).
C39: (Workpaper Cross Reference Pages 1 (Common Plant) and 2 (Common Accumulated Reserve))
A40: 2/ Excluding Deferred AFUDC, Depreciation and Interest on Coyote (Montana) = $477,281.

Sheet Reconcile FF1 to Comm Plt (1a)
Q1: Workpaper Cross Reference Page 1a
A3: Montana-Dakota Utilities Co.
A4: MISO Attachment O Annual True-Up
A5: Common Plant in Service by Utility by State (Workpaper for Page 2 of 5)
A6: Reconciliation of Form 1
A7: Twelve Months Ended December 31, 2013
I9: North | K9: South | M9: East
E10: Total | G10: Montana | I10: Dakota | K10: Dakota | M10: River | O10: Wyoming | Q10: GPNG
A11: Utility 1/
B12: MDU Electric
C13: Common | E13: =SUM(G13:O13) -> 35082486 | G13: 6676686 | I13: 23181360 | K13: 1383241 | O13: 3841199
C14: Common Intangible | E14: =SUM(G14:O14) -> 24500530 | G14: 4850801 | I14: 15450869 | K14: 1452408 | O14: 2746452
B15: MDU Gas
C16: Common | E16: =SUM(G16:O16) -> 24993129 | G16: 11048767 | I16: 8779969 | K16: 2245020 | M16: 879355 | O16: 2040018
C17: Common Intangible | E17: =SUM(G17:O17) -> 29108174 | G17: 8802713 | I17: 11256051 | K17: 5762829 | M17: 1116204 | O17: 2170377
B18: GPNG Gas
C19: Common | E19: =SUM(G19:Q19) -> 1121853 | Q19: 1121853
C20: Common Intangible | E20: =SUM(G20:Q20) -> 935403 | Q20: 935403
A21: Total MDU | E21: =SUM(E13:E20) -> 115741575 | G21: =SUM(G13:G20) -> 31378967 | I21: =SUM(I13:I20) -> 58668249 | K21: =SUM(K13:K20) -> 10843498 | M21: =SUM(M13:M20) -> 1995559 | O21: =SUM(O13:O20) -> 10798046 | Q21: =SUM(Q13:Q20) -> 2057256
A24: 1/ Excluding Asset Retirement Obligations (acct 399.1) of $7,270 per Note AA, page 5 of Attachment O.

Sheet 13 Month Plant (1b)
A1: Workpaper Cross Reference Page 1b
A3: Montana-Dakota Utilities Co.
A4: MISO Attachment O Annual True-Up
A5: Plant in Service (Workpaper for Page 2 of 5)
A6: Thirteen Month Balances per Note DD of Attachment O
A7: (December 2012 - December 2013)
C10: 13 Month Average | E10: December 2012 | F10: January 2013 | G10: February 2013 | H10: March 2013 | I10: April 2013 | J10: May 2013 | K10: June 2013 | L10: July 2013 | M10: August 2013 | N10: September 2013 | O10: October 2013 | P10: November 2013 | Q10: December 2013 | S10: 12/31% of Average
A11: Total Company
A12: Steam Production | C12: =ROUND(AVERAGE(E12:Q12),0) -> 381639395 | E12: 378177500 | F12: 378177500 | G12: 378333735 | H12: 378540374 | I12: 378540374 | J12: 378540374 | K12: 380079738 | L12: 380205734 | M12: 381209069 | N12: 382257955 | O12: 382207632 | P12: 382802492 | Q12: 402239654 | S12: =ROUND(Q12/C12,3) -> 1.054
A13: Other Production | C13: =ROUND(AVERAGE(E13:Q13),0) -> 153450047 | E13: 153449193 | F13: 153449193 | G13: 153342381 | H13: 153342689 | I13: 153342689 | J13: 153342689 | K13: 153385162 | L13: 153432340 | M13: 153453768 | N13: 153477438 | O13: 153477438 | P13: 153585971 | Q13: 153769656 | S13: =ROUND(Q13/C13,3) -> 1.002
A14: Production | C14: =SUM(C12:C13) -> 535089442 | E14: =SUM(E12:E13) -> 531626693 | F14: 531626693 | G14: 531676116 | H14: 531883063 | I14: 531883063 | J14: 531883063 | K14: 533464900 | L14: 533638074 | M14: 534662837 | N14: 535735393 | O14: 535685070 | P14: 536388463 | Q14: 556009310 | S14: 1.039
A15: Transmission | C15: 185034955 | E15: 180542078 | F15: 180542078 | G15: 180689458 | H15: 180893303 | I15: 180893303 | J15: 180893303 | K15: 184459644 | L15: 185970426 | M15: 187372330 | N15: 187729142 | O15: 187546654 | P15: 191099853 | Q15: 196822845 | S15: 1.064
A16: Distribution | C16: 287660647 | E16: 276406412 | F16: 276406412 | G16: 277174452 | H16: 277600383 | I16: 277600383 | J16: 277601646 | K16: 289637558 | L16: 290288601 | M16: 290756244 | N16: 296165864 | O16: 299154393 | P16: 302633751 | Q16: 308162308 | S16: 1.071
A17: General | C17: 24959280 | E17: 24361304 | F17: 24356531 | G17: 24395450 | H17: 24424446 | I17: 24404211 | J17: 24404211 | K17: 25129338 | L17: 25174764 | M17: 25463700 | N17: 25710270 | O17: 25766911 | P17: 25289110 | Q17: 25590392 | S17: 1.025
A18: General - Intangible | C18: 9102195 | E18: 9098948 | F18: 9098948 | G18: 9098948 | H18: 9098948 | I18: 9098948 | J18: 9098948 | K18: 9098948 | L18: 9098948 | M18: 9098948 | N18: 9098948 | O18: 9098948 | P18: 9098948 | Q18: 9141165 | S18: 1.004
C19: =SUM(C14:C18) -> 1041846519 | E19: =SUM(E14:E18) -> 1022035435 | F19: 1022030662 | G19: 1023034424 | H19: 1023900143 | I19: 1023879908 | J19: 1023881171 | K19: 1041790388 | L19: 1044170813 | M19: 1047354059 | N19: 1054439617 | O19: 1057251976 | P19: 1064510125 | Q19: 1095726020 | S19: 1.052
A20: Common 1/ | C20: 107513300 | E20: 84610451.97 | F20: 84578881.91 | G20: 108691684.6 | H20: 108905413.6 | I20: 108404785.1 | J20: 110397959.7 | K20: 110858990.5 | L20: 110897421.5 | M20: 112185066.8 | N20: 114035523.8 | O20: 114349992.9 | P20: 114015155.2 | Q20: 115741577 | S20: 1.077
A21: Total Plant in Service | C21: =C19+C20 -> 1149359819 | E21: =E19+E20 -> 1106645887 | F21: 1106609544 | G21: 1131726109 | H21: 1132805557 | I21: 1132284693 | J21: 1134279131 | K21: 1152649378 | L21: 1155068234 | M21: 1159539126 | N21: 1168475141 | O21: 1171601969 | P21: 1178525280 | Q21: 1211467597 | S21: 1.054
A24: Wyoming Electric
A25: Steam Production | C25: =ROUND(AVERAGE(E25:Q25),0) -> 63411951 | E25: 63312091 | F25: 63312091 | G25: 63303923 | H25: 63303923 | I25: 63303923 | J25: 63303923 | K25: 63285546 | L25: 63285546 | M25: 63285546 | N25: 63492269 | O25: 63492269 | P25: 63492265 | Q25: 64182054
A26: Other Production
A27: Production | C27: =SUM(C25:C26) -> 63411951 | E27: =SUM(E25:E26) -> 63312091 | F27: =SUM(F25:F26) -> 63312091 | G27: =SUM(G25:G26) -> 63303923 | H27: =SUM(H25:H26) -> 63303923 | I27: =SUM(I25:I26) -> 63303923 | J27: =SUM(J25:J26) -> 63303923 | K27: =SUM(K25:K26) -> 63285546 | L27: =SUM(L25:L26) -> 63285546 | M27: =SUM(M25:M26) -> 63285546 | N27: =SUM(N25:N26) -> 63492269 | O27: =SUM(O25:O26) -> 63492269 | P27: =SUM(P25:P26) -> 63492265 | Q27: 64182054
A28: Transmission | C28: 3192143 | E28: 3192143 | F28: 3192143 | G28: 3192143 | H28: 3192143 | I28: 3192143 | J28: 3192143 | K28: 3192143 | L28: 3192143 | M28: 3192143 | N28: 3192143 | O28: 3192143 | P28: 3192143 | Q28: 3192143
A29: Distribution | C29: 44818606 | E29: 44253529 | F29: 44094656 | G29: 44011264 | H29: 44017470 | I29: 44017470 | J29: 44017470 | K29: 45216487 | L29: 45217862 | M29: 45240407 | N29: 45309748 | O29: 45527821 | P29: 45766451 | Q29: 45951242
A30: General | C30: 2205294 | E30: 2168197 | F30: 2159165 | G30: 2158534 | H30: 2161446 | I30: 2152631 | J30: 2159873 | K30: 2201619 | L30: 2195865 | M30: 2273048 | N30: 2300175 | O30: 2243367 | P30: 2243439 | Q30: 2251462
A31: General - Intangible | C31: 375286 | E31: 386082 | F31: 374001 | G31: 374001 | H31: 374001 | I31: 374001 | J31: 374001 | K31: 374001 | L31: 374001 | M31: 374001 | N31: 374001 | O31: 374001 | P31: 374001 | Q31: 378629
C32: =SUM(C27:C31) -> 114003280 | E32: =SUM(E27:E31) -> 113312042 | F32: =SUM(F27:F31) -> 113132056 | G32: =SUM(G27:G31) -> 113039865 | H32: =SUM(H27:H31) -> 113048983 | I32: =SUM(I27:I31) -> 113040168 | J32: =SUM(J27:J31) -> 113047410 | K32: =SUM(K27:K31) -> 114269796 | L32: =SUM(L27:L31) -> 114265417 | M32: =SUM(M27:M31) -> 114365145 | N32: =SUM(N27:N31) -> 114668336 | O32: =SUM(O27:O31) -> 114829601 | P32: =SUM(P27:P31) -> 115068299 | Q32: =SUM(Q27:Q31) -> 115955530
A33: Common 2/
A34: Wyoming Electric
A35: Common | C35: =ROUND(AVERAGE(E35:Q35),0) -> 4024536 | E35: 3857153 | F35: 3770974 | G35: 6779935 | H35: 3780717 | I35: 3761805 | J35: 3753716 | K35: 3777888 | L35: 3774920 | M35: 3780612 | N35: 3819509 | O35: 3832361 | P35: 3788176 | Q35: 3841199
A36: Common Intangible | C36: 2496505 | E36: 1664801 | F36: 1612366 | G36: 2520066 | H36: 2557545 | I36: 2557545 | J36: 2650832 | K36: 2652706 | L36: 2654924 | M36: 2697270 | N36: 2704425 | O36: 2713505 | P36: 2722127 | Q36: 2746452
A37: Wyoming Gas
A38: Common | C38: =ROUND(AVERAGE(E38:Q38),0) -> 2010582 | E38: 1983705 | F38: 2002107 | G38: 2006705 | H38: 2007111 | I38: 1997210 | J38: 1995817 | K38: 2008342 | L38: 2006799 | M38: 2009729 | N38: 2030094 | O38: 2037158 | P38: 2012765 | Q38: 2040018
A39: Common Intangible | C39: 1890470 | E39: 861190 | F39: 854685 | G39: 1995552 | H39: 1985629 | I39: 1985629 | J39: 2068800 | K39: 2069770 | L39: 2070920 | M39: 2115210 | N39: 2123651 | O39: 2132618 | P39: 2142085 | Q39: 2170377
C40: =SUM(C35:C39) -> 10422093 | E40: =SUM(E35:E39) -> 8366849 | F40: =SUM(F35:F39) -> 8240132 | G40: 13302258 | H40: 10331002 | I40: 10302189 | J40: 10469165 | K40: 10508706 | L40: 10507563 | M40: 10602821 | N40: 10677679 | O40: 10715642 | P40: 10665153 | Q40: 10798046
A42: Total Plant in Service - WY | C42: =C32+C40 -> 124425373 | E42: =E32+E40 -> 121678891 | F42: 121372188 | G42: 126342123 | H42: 123379985 | I42: 123342357 | J42: 123516575 | K42: 124778502 | L42: 124772980 | M42: 124967966 | N42: 125346015 | O42: 125545243 | P42: 125733452 | Q42: 126753576
A45: Integrated System
A46: Steam Production | C46: =ROUND(AVERAGE(E46:Q46),0) -> 318227443 | E46: =E12-E25 -> 314865409 | F46: 314865409 | G46: 315029812 | H46: 315236451 | I46: 315236451 | J46: 315236451 | K46: 316794192 | L46: 316920188 | M46: 317923523 | N46: 318765686 | O46: 318715363 | P46: 319310227 | Q46: 338057600 | S46: =ROUND(Q46/C46,3) -> 1.062
A47: Other Production | C47: 153450047 | E47: =E13-E26 -> 153449193 | F47: 153449193 | G47: 153342381 | H47: 153342689 | I47: 153342689 | J47: 153342689 | K47: 153385162 | L47: 153432340 | M47: 153453768 | N47: 153477438 | O47: 153477438 | P47: 153585971 | Q47: 153769656 | S47: =ROUND(Q47/C47,3) -> 1.002
A48: Production | C48: =SUM(C46:C47) -> 471677490 | E48: =SUM(E46:E47) -> 468314602 | F48: =SUM(F46:F47) -> 468314602 | G48: =SUM(G46:G47) -> 468372193 | H48: =SUM(H46:H47) -> 468579140 | I48: =SUM(I46:I47) -> 468579140 | J48: =SUM(J46:J47) -> 468579140 | K48: =SUM(K46:K47) -> 470179354 | L48: =SUM(L46:L47) -> 470352528 | M48: =SUM(M46:M47) -> 471377291 | N48: =SUM(N46:N47) -> 472243124 | O48: =SUM(O46:O47) -> 472192801 | P48: =SUM(P46:P47) -> 472896198 | Q48: =SUM(Q46:Q47) -> 491827256 | S48: 1.043
A49: Transmission | C49: =ROUND(AVERAGE(E49:Q49),0) -> 181842812 | E49: =E15-E28 -> 177349935 | F49: 177349935 | G49: 177497315 | H49: 177701160 | I49: 177701160 | J49: 177701160 | K49: 181267501 | L49: 182778283 | M49: 184180187 | N49: 184536999 | O49: 184354511 | P49: 187907710 | Q49: 193630702 | S49: 1.065
A50: Distribution | C50: 242842041 | E50: =E16-E29 -> 232152883 | F50: 232311756 | G50: 233163188 | H50: 233582913 | I50: 233582913 | J50: 233584176 | K50: 244421071 | L50: 245070739 | M50: 245515837 | N50: 250856116 | O50: 253626572 | P50: 256867300 | Q50: 262211066 | S50: 1.08
A51: General | C51: 22753986 | E51: =E17-E30 -> 22193107 | F51: 22197366 | G51: 22236916 | H51: 22263000 | I51: 22251580 | J51: 22244338 | K51: 22927719 | L51: 22978899 | M51: 23190652 | N51: 23410095 | O51: 23523544 | P51: 23045671 | Q51: 23338930 | S51: 1.026
A52: General - Intangible | C52: 8726909 | E52: =E18-E31 -> 8712866 | F52: 8724947 | G52: 8724947 | H52: 8724947 | I52: 8724947 | J52: 8724947 | K52: 8724947 | L52: 8724947 | M52: 8724947 | N52: 8724947 | O52: 8724947 | P52: 8724947 | Q52: 8762536 | S52: 1.004
C53: =SUM(C48:C52) -> 927843238 | E53: =SUM(E48:E52) -> 908723393 | F53: =SUM(F48:F52) -> 908898606 | G53: =SUM(G48:G52) -> 909994559 | H53: =SUM(H48:H52) -> 910851160 | I53: =SUM(I48:I52) -> 910839740 | J53: =SUM(J48:J52) -> 910833761 | K53: =SUM(K48:K52) -> 927520592 | L53: =SUM(L48:L52) -> 929905396 | M53: =SUM(M48:M52) -> 932988914 | N53: =SUM(N48:N52) -> 939771281 | O53: =SUM(O48:O52) -> 942422375 | P53: =SUM(P48:P52) -> 949441826 | Q53: =SUM(Q48:Q52) -> 979770490 | S53: 1.056
A54: Common 3/ | C54: =ROUND(AVERAGE(E54:Q54),0) -> 97091208 | E54: =E20-E40 -> 76243602.97 | F54: 76338749.91 | G54: 95389426.64 | H54: 98574411.62 | I54: 98102596.07 | J54: 99928794.74 | K54: 100350284.5 | L54: 100389858.5 | M54: 101582245.8 | N54: 103357844.8 | O54: 103634350.9 | P54: 103350002.2 | Q54: 104943531 | S54: 1.081
A55: Total Plant in Service | C55: =C53+C54 -> 1024934446 | E55: =E53+E54 -> 984966996 | F55: =F53+F54 -> 985237355.9 | G55: =G53+G54 -> 1005383986 | H55: =H53+H54 -> 1009425572 | I55: =I53+I54 -> 1008942336 | J55: =J53+J54 -> 1010762556 | K55: =K53+K54 -> 1027870876 | L55: =L53+L54 -> 1030295254 | M55: =M53+M54 -> 1034571160 | N55: =N53+N54 -> 1043129126 | O55: =O53+O54 -> 1046056726 | P55: =P53+P54 -> 1052791828 | Q55: =Q53+Q54 -> 1084714021 | S55: 1.058
A59: 1/ Common reflects Total Electric, Total Gas - MDU, and Total Gas - GPNG.
A60: 2/ Common reflects Wyoming Electric and Wyoming Gas.
A61: 3/ Common reflects Total Electric (excluding Wyoming), Total Gas - MDU (excluding Wyoming), and Total Gas - GPNG.

Sheet Recon FF1 to Acc Res (2)
I1: Workpaper Cross Reference Page 2
A3: Montana-Dakota Utilities Co.
A4: MISO Attachment O Annual True Up
A5: Accumulated Reserve for Depreciation by Function (Workpaper for Page 2 of 5)
A6: Reconciliation of Form 1
A7: ='Reconcile FF1 to Plant (1)'!A7 -> Twelve Months Ended December 31, 2013
C10: Form 1 | E10: Form 1
C11: Page, Line, Col. | E11: Ending Balance | G11: Balances | I11: AROs 1/
A12: Steam Production | C12: 219.20.c | E12: 222163669 | G12: 221603422 | I12: =E12-G12 -> 560247
A13: Other Production | C13: 219.24.c | E13: 37277088 | G13: 36709311 | I13: =E13-G13 -> 567777
A14: Production | E14: =SUM(E12:E13) -> 259440757 | G14: =SUM(G12:G13) -> 258312733 | I14: =SUM(I12:I13) -> 1128024
A15: Transmission | C15: 219.25.c | E15: 91945558 | G15: 91945096 | I15: =E15-G15 -> 462
A16: Distribution | C16: 219.26.c | E16: 130709243 | G16: 130676177 | I16: =E16-G16 -> 33066
A17: General | C17: 219.28.c | E17: 10980004 | G17: 10980004 | I17: =E17-G17 -> 0
A18: General Intangible | C18: 200.21.c | E18: 6774890 | G18: 6774890 | I18: =E18-G18 -> 0
E19: =SUM(E14:E18) -> 499850452 | G19: =SUM(G14:G18) -> 498688900 | I19: =SUM(I14:I18) -> 1161552
A20: Common | C20: 356.1 | E20: 47516194 | G20: 47511471 | I20: =E20-G20 -> 4723
E21: =SUM(E19:E20) -> 547366646 | G21: =SUM(G19:G20) -> 546200371 | I21: =SUM(I19:I20) -> 1166275
A25: 1/ AROs = difference between Form 1 balances and Jurisdictional balances.

Sheet Reconcile FF1 to Com Res (2a)
Q1: Workpaper Cross Reference Page 2a
A3: Montana-Dakota Utilities Co.
A4: MISO Attachment O Annual True-Up
A5: Common Accumulated Reserve for Depreciation by Utility by State (Workpaper for Page 2 of 5)
A6: Reconciliation of Form 1
A7: Twelve Months Ended December 31, 2013
I9: North | K9: South | M9: East
E10: Total | G10: Montana | I10: Dakota | K10: Dakota | M10: River | O10: Wyoming | Q10: GPNG
A11: Utility 1/
B12: MDU Electric
C13: Common | E13: =SUM(G13:O13) -> 15613681 | G13: 3086656 | I13: 10290965 | K13: 656439 | O13: 1579621
C14: Common Intangible | E14: =SUM(G14:O14) -> 12169449 | G14: 2455948 | I14: 7689692 | K14: 686408 | O14: 1337401
B15: MDU Gas
C16: Common | E16: =SUM(G16:O16) -> 9277467 | G16: 3266099 | I16: 3853642 | K16: 922622 | M16: 420814 | O16: 814290
C17: Common Intangible | E17: =SUM(G17:O17) -> 9394146 | G17: 2664064 | I17: 3569876 | K17: 1941865 | M17: 466528 | O17: 751813
B18: GPNG Gas
C19: Common | E19: =SUM(G19:Q19) -> 456890 | Q19: 456890
C20: Common Intangible | E20: =SUM(G20:Q20) -> 617457 | Q20: 617457
E21: =SUM(E13:E20) -> 47529090 | G21: =SUM(G13:G20) -> 11472767 | I21: =SUM(I13:I20) -> 25404175 | K21: =SUM(K13:K20) -> 4207334 | M21: =SUM(M13:M20) -> 887342 | O21: =SUM(O13:O20) -> 4483125 | Q21: =SUM(Q13:Q20) -> 1074347
B23: Exclude Work in Progress
C24: Electric | E24: =SUM(G24:Q24) -> 10485 | G24: -3852 | I24: 11425 | K24: 918 | O24: 1994
C25: Gas | E25: =SUM(G25:Q25) -> 7134 | G25: -3268 | I25: 4817 | K25: 2655 | M25: 570 | O25: 1033 | Q25: =1190+137 -> 1327
E26: =SUM(E24:E25) -> 17619 | G26: =SUM(G24:G25) -> -7120 | I26: =SUM(I24:I25) -> 16242 | K26: =SUM(K24:K25) -> 3573 | M26: =SUM(M24:M25) -> 570 | O26: =SUM(O24:O25) -> 3027 | Q26: =SUM(Q24:Q25) -> 1327
A28: Total MDU Common | E28: =SUM(G28:Q28) -> 47511471 | G28: =G21-G26 -> 11479887 | I28: =I21-I26 -> 25387933 | K28: =K21-K26 -> 4203761 | M28: =M21-M26 -> 886772 | O28: =O21-O26 -> 4480098 | Q28: =Q21-Q26 -> 1073020
A31: 1/ Excluding Asset Retirement Obligations (acct 399.1) of $4,723 per Note AA, page 5 of Attachment O.
B32: Ties to Total Common - Jurisdictional Workpapers Page 1 and Page 2b (December 2013).

Sheet 13 Month Accum Res (2b)
A1: Workpaper Cross Reference Page 2b
A3: Montana-Dakota Utilities Co.
A4: MISO Attachment O Annual True-Up
A5: Accumulated Reserve (Workaper for Page 2 of 5)
A6: Thirteen Month Balances per Note DD of Attachment O
A7: (December 2012 - December 2013)
C10: 13 Month Average | E10: December 2012 | F10: January 2013 | G10: February 2013 | H10: March 2013 | I10: April 2013 | J10: May 2013 | K10: June 2013 | L10: July 2013 | M10: August 2013 | N10: September 2013 | O10: October 2013 | P10: November 2013 | Q10: December 2013 | S10: 12/31% of Average
A11: Total Company
A12: Steam Production | C12: =ROUND(AVERAGE(E12:Q12),0) -> 216389313 | E12: 212025868 | F12: 212829299 | G12: 213633071 | H12: 214215579 | I12: 214822698 | J12: 215829190 | K12: 216512008 | L12: 217317256 | M12: 217657960 | N12: 218371418 | O12: 219134311 | P12: 219108991 | Q12: 221603422 | S12: =ROUND(Q12/C12,3) -> 1.024
A13: Other Production | C13: =ROUND(AVERAGE(E13:Q13),0) -> 33362593 | E13: 29999471 | F13: 30557885 | G13: 31114715 | H13: 31672158 | I13: 32224007 | J13: 32787978 | K13: 33387818 | L13: 33944897 | M13: 34496327 | N13: 35053946 | O13: 35609744 | P13: 36155452 | Q13: 36709312 | S13: =ROUND(Q13/C13,3) -> 1.1
A14: Production | C14: =SUM(C12:C13) -> 249751906 | E14: =SUM(E12:E13) -> 242025339 | F14: 243387184 | G14: 244747786 | H14: 245887737 | I14: 247046705 | J14: 248617168 | K14: 249899826 | L14: 251262153 | M14: 252154287 | N14: 253425364 | O14: 254744055 | P14: 255264443 | Q14: 258312734 | S14: 1.034
A15: Transmission | C15: 89618366 | E15: 87721430 | F15: 87998995 | G15: 88270258 | H15: 88761037 | I15: 89012938 | J15: 89138339 | K15: 89457953 | L15: 89736110 | M15: 90115446 | N15: 90418560 | O15: 90619062 | P15: 91843537 | Q15: 91945097 | S15: 1.026
A16: Distribution | C16: 128755929 | E16: 126140945 | F16: 126711214 | G16: 126922752 | H16: 127124594 | I16: 127532376 | J16: 129413135 | K16: 129437615 | L16: 129814468 | M16: 129581439 | N16: 129964015 | O16: 130197683 | P16: 130310664 | Q16: 130676177 | S16: 1.015
A17: General | C17: 10666773 | E17: 9950069 | F17: 10097178 | G17: 10229519 | H17: 10368878 | I17: 10504707 | J17: 10625360 | K17: 10758161 | L17: 10892822 | M17: 11080932 | N17: 11186862 | O17: 11194109 | P17: 10799444 | Q17: 10980003 | S17: 1.029
A18: General - Intangible | C18: 6618535 | E18: 6462259 | F18: 6488290.07 | G18: 6514321.19 | H18: 6540352.31 | I18: 6566383.43 | J18: 6592447 | K18: 6618510 | L18: 6644573 | M18: 6670637 | N18: 6696700 | O18: 6722763 | P18: 6748826 | Q18: 6774890 | S18: 1.024
C19: =SUM(C14:C18) -> 485411509 | E19: =SUM(E14:E18) -> 472300042 | F19: 474682861.1 | G19: 476684636.2 | H19: 478682598.3 | I19: 480663109.4 | J19: 484386449 | K19: 486172065 | L19: 488350126 | M19: 489602741 | N19: 491691501 | O19: 493477672 | P19: 494966914 | Q19: 498688901 | S19: 1.027
A21: Common 1/ | C21: 25016291 | E21: 24283759 | F21: 24478183 | G21: 24681171 | H21: 24898528 | I21: 24588966 | J21: 24853746 | K21: 24986522 | L21: 25195815 | M21: 25400063 | N21: 25588230 | O21: 25726069 | P21: 25182689 | Q21: 25348037 | S21: 1.013
A22: Common Intangible 1/ | C22: 20838717 | E22: 19814566 | F22: 19882163 | G22: 19949760 | H22: 20150771 | I22: 20352890 | J22: 20555754 | K22: 20775207 | L22: 20995200 | M22: 21215210 | N22: 21449115 | O22: 21676460 | P22: 21905174 | Q22: 22181053 | S22: 1.064
A23: less: Common RWIP | C23: 12303 | E23: 4438 | F23: 29378 | G23: 35647 | H23: 8048 | I23: 8048 | J23: 74148 | K23: -66000 | L23: 4113 | M23: 1854 | N23: 1766 | O23: 5019 | P23: 35867 | Q23: 17619 | S23: =ROUND(Q26/C26,3) -> 1.028
C24: =C21+C22-C23 -> 45842705 | E24: =E21+E22-E23 -> 44093887 | F24: 44330968 | G24: 44595284 | H24: 45041251 | I24: 44933808 | J24: 45335352 | K24: 45827729 | L24: 46186902 | M24: 46613419 | N24: 47035579 | O24: 47397510 | P24: 47051996 | Q24: 47511471
A26: Total Accum. Reserve | C26: =C19+C24 -> 531254214 | E26: =E19+E24 -> 516393929 | F26: 519013829.1 | G26: 521279920.2 | H26: 523723849.3 | I26: 525596917.4 | J26: 529721801 | K26: 531999794 | L26: 534537028 | M26: 536216160 | N26: 538727080 | O26: 540875182 | P26: 542018910 | Q26: 546200372
A29: Wyoming Electric
A30: Steam Production | C30: =ROUND(AVERAGE(E30:Q30),0) -> 3997025 | E30: 3363852 | F30: 3469372 | G30: 3574892 | H30: 3680399 | I30: 3785905 | J30: 3891412 | K30: 3996918 | L30: 4102394 | M30: 4207870 | N30: 4313346 | O30: 4419166 | P30: 4524987 | Q30: 4630807
A31: Other Production
A32: Production | C32: =SUM(C30:C31) -> 3997025 | E32: =SUM(E30:E31) -> 3363852 | F32: 3469372 | G32: 3574892 | H32: 3680399 | I32: 3785905 | J32: 3891412 | K32: 3996918 | L32: 4102394 | M32: 4207870 | N32: 4313346 | O32: 4419166 | P32: 4524987 | Q32: 4630807
A33: Transmission | C33: =ROUND(AVERAGE(E33:Q33),0) -> 2560018 | E33: 2529514 | F33: 2534600 | G33: 2539685 | H33: 2544770 | I33: 2549857 | J33: 2554942 | K33: 2560028 | L33: 2565113 | M33: 2570199 | N33: 2575285 | O33: 2580329 | P33: 2585414 | Q33: 2590500
A34: Distribution | C34: 22307425 | E34: 21809475 | F34: 21849071 | G34: 21952715 | H34: 22050791 | I34: 22151107 | J34: 22344763 | K34: 22356560 | L34: 22434941 | M34: 22457477 | N34: 22549356 | O34: 22619432 | P34: 22689528 | Q34: 22731305
A35: General | C35: 942260 | E35: 872447 | F35: 878926 | G35: 889443 | H35: 906135 | I35: 910350 | J35: 924225 | K35: 934749 | L35: 945465 | M35: 1018332 | N35: 1029055 | O35: 988585 | P35: 976321 | Q35: 975351
A36: General - Intangible | C36: 98037 | E36: 82427 | F36: 83019 | G36: 85984 | H36: 88950 | I36: 91915 | J36: 94883 | K36: 97852 | L36: 100820 | M36: 103789 | N36: 106758 | O36: 109726 | P36: 112695 | Q36: 115663
C37: =SUM(C32:C36) -> 29904765 | E37: =SUM(E32:E36) -> 28657715 | F37: 28814988 | G37: 29042719 | H37: 29271045 | I37: 29489134 | J37: 29810225 | K37: 29946107 | L37: 30148733 | M37: 30357667 | N37: 30573800 | O37: 30717238 | P37: 30888945 | Q37: 31043626
A38: Common 2/
A39: Wyoming Electric
A40: Common | C40: =ROUND(AVERAGE(E40:Q40),0) -> 1562066 | E40: 1541532 | F40: 1517785 | G40: 1530853 | H40: 1543768 | I40: 1537268 | J40: 1554490 | K40: 1563307 | L40: 1576594 | M40: 1589679 | N40: 1595398 | O40: 1606344 | P40: 1570213 | Q40: 1579621
A41: Common Intangible | C41: 1277661 | E41: 1264978 | F41: 1229315 | G41: 1233495 | H41: 1242720 | I41: 1252154 | J41: 1261285 | K41: 1271607 | L41: 1281963 | M41: 1292319 | N41: 1303424 | O41: 1314099 | P41: 1324837 | Q41: 1337401
A42: Wyoming Gas
A43: Common | C43: =ROUND(AVERAGE(E43:Q43),0) -> 803786 | E43: 770377 | F43: 782539 | G43: 789383 | H43: 796155 | I43: 792758 | J43: 801771 | K43: 806432 | L43: 813409 | M43: 820281 | N43: 823448 | O43: 829184 | P43: 809196 | Q43: 814289
A44: Common Intangible | C44: 696179 | E44: 659135 | F44: 656202 | G44: 658367 | H44: 666873 | I44: 675323 | J44: 684023 | K44: 693148 | L44: 702289 | M44: 711432 | N44: 721091 | O44: 730555 | P44: 740077 | Q44: 751813
C45: =SUM(C40:C44) -> 4339692 | E45: =SUM(E40:E44) -> 4236022 | F45: =SUM(F40:F44) -> 4185841 | G45: 4212098 | H45: 4249516 | I45: 4257503 | J45: 4301569 | K45: 4334494 | L45: 4374255 | M45: 4413711 | N45: 4443361 | O45: 4480182 | P45: 4444323 | Q45: 4483124
A47: Total Accum. Reserve | C47: =C37+C45 -> 34244457 | E47: =E37+E45 -> 32893737 | F47: 33000829 | G47: 33254817 | H47: 33520561 | I47: 33746637 | J47: 34111794 | K47: 34280601 | L47: 34522988 | M47: 34771378 | N47: 35017161 | O47: 35197420 | P47: 35333268 | Q47: 35526750
A50: Integrated System
A51: Steam Production | C51: =ROUND(AVERAGE(E51:Q51),0) -> 212392289 | E51: =E12-E30 -> 208662016 | F51: 209359927 | G51: 210058179 | H51: 210535180 | I51: 211036793 | J51: 211937778 | K51: 212515090 | L51: 213214862 | M51: 213450090 | N51: 214058072 | O51: 214715145 | P51: 214584004 | Q51: 216972615 | S51: =ROUND(Q51/C51,3) -> 1.022
A52: Other Production | C52: =ROUND(AVERAGE(E52:Q52),0) -> 33362593 | E52: =E13-E31 -> 29999471 | F52: 30557885 | G52: 31114715 | H52: 31672158 | I52: 32224007 | J52: 32787978 | K52: 33387818 | L52: 33944897 | M52: 34496327 | N52: 35053946 | O52: 35609744 | P52: 36155452 | Q52: 36709312 | S52: =ROUND(Q52/C52,3) -> 1.1
A53: Production | C53: =SUM(C51:C52) -> 245754882 | E53: =SUM(E51:E52) -> 238661487 | F53: 239917812 | G53: 241172894 | H53: 242207338 | I53: 243260800 | J53: 244725756 | K53: 245902908 | L53: 247159759 | M53: 247946417 | N53: 249112018 | O53: 250324889 | P53: 250739456 | Q53: 253681927 | S53: 1.032
A54: Transmission | C54: =ROUND(AVERAGE(E54:Q54),0) -> 87058348 | E54: =E15-E33 -> 85191916 | F54: 85464395 | G54: 85730573 | H54: 86216267 | I54: 86463081 | J54: 86583397 | K54: 86897925 | L54: 87170997 | M54: 87545247 | N54: 87843275 | O54: 88038733 | P54: 89258123 | Q54: 89354597 | S54: 1.026
A55: Distribution | C55: 106448504 | E55: =E16-E34 -> 104331470 | F55: 104862143 | G55: 104970037 | H55: 105073803 | I55: 105381269 | J55: 107068372 | K55: 107081055 | L55: 107379527 | M55: 107123962 | N55: 107414659 | O55: 107578251 | P55: 107621136 | Q55: 107944872 | S55: 1.014
A56: General | C56: 9724512 | E56: =E17-E35 -> 9077622 | F56: 9218252 | G56: 9340076 | H56: 9462743 | I56: 9594357 | J56: 9701135 | K56: 9823412 | L56: 9947357 | M56: 10062600 | N56: 10157807 | O56: 10205524 | P56: 9823123 | Q56: 10004652 | S56: 1.029
A57: General - Intangible | C57: 6520498 | E57: =E18-E36 -> 6379832 | F57: 6405271.07 | G57: 6428337.19 | H57: 6451402.31 | I57: 6474468.43 | J57: 6497564 | K57: 6520658 | L57: 6543753 | M57: 6566848 | N57: 6589942 | O57: 6613037 | P57: 6636131 | Q57: 6659227 | S57: 1.021
C58: =SUM(C53:C57) -> 455506744 | E58: =SUM(E53:E57) -> 443642327 | F58: 445867873.1 | G58: 447641917.2 | H58: 449411553.3 | I58: 451173975.4 | J58: 454576224 | K58: 456225958 | L58: 458201393 | M58: 459245074 | N58: 461117701 | O58: 462760434 | P58: 464077969 | Q58: 467645275 | S58: 1.027
A59: Common 3/ | C59: =ROUND(AVERAGE(E59:Q59),0) -> 41503012 | E59: =E24-E45 -> 39857865 | F59: =F24-F45 -> 40145127 | G59: 40383186 | H59: 40791735 | I59: 40676305 | J59: 41033783 | K59: 41493235 | L59: 41812647 | M59: 42199708 | N59: 42592218 | O59: 42917328 | P59: 42607673 | Q59: 43028347 | S59: 1.037
A60: Total Accum. Reserve | C60: =C58+C59 -> 497009756 | E60: =E58+E59 -> 483500192 | F60: 486013000.1 | G60: 488025103.2 | H60: 490203288.3 | I60: 491850280.4 | J60: 495610007 | K60: 497719193 | L60: 500014040 | M60: 501444782 | N60: 503709919 | O60: 505677762 | P60: 506685642 | Q60: 510673622 | S60: 1.027
A68: 1/ Common reflects Total Electric, Total Gas - MDU, and Total Gas - GPNG.
A69: 2/ Common reflects Wyoming Electric and Wyoming Gas.
A70: 3/ Common reflects Total Electric (excluding Wyoming), Total Gas - MDU (excluding Wyoming), and Total Gas - GPNG.

Sheet Adj to RB - Reconcile to F1 (3)
O1: Workpaper Cross Reference Page 3(1)
A3: Montana-Dakota Utilities Co.
A4: MISO Attachment O Annual True-up
A5: Adjustments to Rate Base (Workpaper for Page 2 of 5)
A6: Reconciliation to Form 1 Balances
A7: Twelve Months Ended December 31, 2013
E10: Form 1 Page, | G10: Form 1 | M10: Exclude | O10: Net
A11: Rate Base | E11: Line, Col. | G11: Ending Balance | I11: Adjustments | K11: Total | M11: Wyoming | O11: Balance
B12: Adjustments to Rate Base
C14: Account No. 281 (enter negative) | E14: 273.8.k | G14: 0 | I14: 0 | K14: =G14-I14 -> 0 | M14: 0 | O14: =K14-M14 -> 0
C16: Account No. 282 (enter negative)
C17: Acct 282 | E17: 275.2.k | G17: -165429237 | I17: 6096023 | K17: =G17-I17 -> -171525260 | M17: -21000121 | O17: =K17-M17 -> -150525139
C18: FAS 109 for Acct 282 | K18: 4502432 | M18: 262726 | O18: =K18-M18 -> 4239706
K19: =SUM(K17:K18) -> -167022828 | M19: =SUM(M17:M18) -> -20737395 | O19: =SUM(O17:O18) -> -146285433
C21: Account No. 283 (enter negative)
C22: Acct 283 | E22: 277.9.k | G22: -14238798 | I22: 3736342 | K22: =G22-I22 -> -17975140 | M22: -1500902 | O22: =K22-M22 -> -16474238
C23: FAS 109 for Acct 283 | K23: 8092 | M23: -24841 | O23: =K23-M23 -> 32933
K24: =SUM(K22:K23) -> -17967048 | M24: =SUM(M22:M23) -> -1525743 | O24: =SUM(O22:O23) -> -16441305
C26: Account No. 190
C27: Acct 190 | E27: 234.8.c | G27: 13820331 | I27: =291160-18706 -> 272454 | K27: =G27+I27 -> 14092785 | M27: 1690092 | O27: =K27-M27 -> 12402693
C28: FAS 109 for Acct 190 | K28: 18706 | M28: 89277 | O28: =K28-M28 -> -70571
K29: =SUM(K27:K28) -> 14111491 | M29: =SUM(M27:M28) -> 1779369 | O29: =SUM(O27:O28) -> 12332122
C31: Account No. 255 (enter negative) | E31: 267.8.h | G31: 0 | I31: 0 | K31: =G31-I31 -> 0 | M31: 0 | O31: =K31-M31 -> 0
O35: Workpaper Cross Reference Page 3(2)
A37: Montana-Dakota Utilities Co.
A38: MISO Attachment O Annual True-up
A39: Adjustments to Rate Base (Workpaper for Page 2 of 5)
A40: Reconciliation to Form 1 Balances
A41: Twelve Months Ended December 31, 2012
E44: Form 1 Page, | G44: Form 1 | M44: Exclude | O44: Net
A45: Rate Base | E45: Line, Col. | G45: Ending Balance | I45: Adjustments | K45: Total | M45: Wyoming | O45: Balance
B46: Adjustments to Rate Base
C48: Account No. 281 (enter negative) | E48: 273.8.k | G48: 0 | I48: 0 | K48: =G48-I48 -> 0 | M48: 0 | O48: =K48-M48 -> 0
C50: Account No. 282 (enter negative)
C51: Acct 282 | E51: 275.2.k | G51: -140731474 | I51: 8532558 | K51: =G51-I51 -> -149264032 | M51: =-17559507+-968632 -> -18528139 | O51: =K51-M51 -> -130735893
C52: FAS 109 for Acct 282 | K52: =2093630-899613 -> 1194017 | M52: 243432 | O52: =K52-M52 -> 950585
K53: =SUM(K51:K52) -> -148070015 | M53: =SUM(M51:M52) -> -18284707 | O53: =SUM(O51:O52) -> -129785308
C55: Account No. 283 (enter negative)
C56: Acct 283 | E56: 277.9.k | G56: -2092733 | I56: =14825244+1355451 -> 16180695 | K56: =G56-I56 -> -18273428 | M56: =-411411+-1235190 -> -1646601 | O56: =K56-M56 -> -16626827
C57: FAS 109 for Acct 283 | K57: =-1071437+-92750 -> -1164187 | M57: -124579 | O57: =K57-M57 -> -1039608
K58: =SUM(K56:K57) -> -19437615 | M58: =SUM(M56:M57) -> -1771180 | O58: =SUM(O56:O57) -> -17666435
C60: Account No. 190
C61: Acct 190 | E61: 234.8.c | G61: 20553050 | I61: 2823706 | K61: =G61+I61 -> 23376756 | M61: 1738547 | O61: =K61-M61 -> 21638209
C62: FAS 109 for Acct 190 | K62: 2291199 | M62: 200588 | O62: =K62-M62 -> 2090611
K63: =SUM(K61:K62) -> 25667955 | M63: =SUM(M61:M62) -> 1939135 | O63: =SUM(O61:O62) -> 23728820
C65: Account No. 255 (enter negative) | E65: 267.8.h | G65: 0 | I65: 0 | K65: =G65-I65 -> 0 | M65: 0 | O65: =K65-M65 -> 0

Sheet Avg Adjustments to RB (3a)
G1: Workpaper Cross Reference Page 3a
A3: Montana-Dakota Utilities Co.
A4: MISO Attachment O Annual True-Up
A5: Adjustments to Rate Base (Workpaper for Page 2 of 5)
A6: Average Balance (per Note EE on Page 5)
A7: 2012 - 2013
C10: Beginning | E10: Ending | G10: Average
C11: Balance | E11: Balance | G11: Balance
A12: Acct 282 | C12: -129785308 | E12: -146285433 | G12: =ROUND(AVERAGE(C12:E12),0) -> -138035371
A14: Acct 283 | C14: -17666435 | E14: -16441305 | G14: =ROUND(AVERAGE(C14:E14),0) -> -17053870
A16: Acct 190 | C16: 23728820 | E16: 12332122 | G16: =ROUND(AVERAGE(C16:E16),0) -> 18030471

Sheet Materials & Supplies (4)
J1: Workpaper Cross Reference Page 4
A3: Montana-Dakota Utilities Co.
A4: MISO Attachment O Annual True-Up
A5: Working Capital (Workpaper for Page 2 of 5)
A6: Transmission Materials & Supplies
A7: December 2012 through December 2013
A11: Total Acct 154 (Materials & Supplies | D11: 2012 Allocation Factors | H11: 2013 Allocation Factors
B12: Form 1, Page 227, Line 12, Column c | D12: 18983774 | H12: 19097488
B13: Exclude Assigned to Other | D13: =-161072+199 -> -160873 | H13: -328467
D14: =D12-D13 -> 19144647 | H14: =H12-H13 -> 19425955
B16: Construction | D16: =15375314-199 -> 15375115 | F16: =ROUND(D16/$D$20,7) -> 0.8031026 | H16: 15099039 | J16: =ROUND(H16/$H$20,7) -> 0.7772611
B17: Production O&M | D17: 2536407 | F17: =ROUND(D17/$D$20,7) -> 0.1324865 | H17: 2580877 | J17: =ROUND(H17/$H$20,7) -> 0.1328571
B18: Transmission O&M | D18: 145920 | F18: =ROUND(D18/$D$20,7) -> 0.007622 | H18: 486746 | J18: =ROUND(H18/$H$20,7) -> 0.0250565
B19: Distribution O&M | D19: 1087205 | F19: =ROUND(D19/$D$20,7) -> 0.056789 | H19: 1259293 | J19: =ROUND(H19/$H$20,7) -> 0.0648253
D20: =SUM(D16:D19) -> 19144647 | F20: =SUM(F16:F19) -> 1.0000001 | H20: =SUM(H16:H19) -> 19425955 | J20: =SUM(J16:J19) -> 1
D23: Total | F23: Allocated | H23: Integrated | J23: Allocated
A24: Materials & Supplies 1/ | D24: Company | F24: Transmission | H24: System | J24: Transmission
A25: December 2012 | D25: 19144647.14 | F25: =ROUND(D25*F18,0) -> 145921 | H25: 14364728.17 | J25: =ROUND(H25*F18,0) -> 109488
A26: January 2013 | D26: 19039334.15 | F26: =ROUND(D26*$J$18,0) -> 477059 | H26: 14376746.45 | J26: =ROUND(H26*$J$18,0) -> 360231
A27: February | D27: 19244177.93 | F27: 482192 | H27: 14526987.64 | J27: 363995
A28: March | D28: 18898377.23 | F28: 473527 | H28: 14212927.69 | J28: 356126
A29: April | D29: 18985123.85 | F29: 475701 | H29: 14062263.33 | J29: 352351
A30: May | D30: 19467718.01 | F30: 487793 | H30: 14165949.82 | J30: 354949
A31: June | D31: 20173862.95 | F31: 505486 | H31: 14561150.72 | J31: 364851
A32: July | D32: 20575864.3 | F32: 515559 | H32: 14804753.76 | J32: 370955
A33: August | D33: 21450676.72 | F33: 537479 | H33: 15523577.92 | J33: 388967
A34: September | D34: 21650095.87 | F34: 542476 | H34: 15614625.35 | J34: 391248
A35: October | D35: 21936798.69 | F35: 549659 | H35: 15913738.1 | J35: 398743
A36: November | D36: 21602373.47 | F36: 541280 | H36: 15665106.38 | J36: 392513
A37: December | D37: 19425955.1 | F37: 486746 | H37: 14300779.01 | J37: 358327
B38: 13 Month Average Balance | J38: =ROUND(AVERAGE(J25:J37),0) -> 350980

Sheet Prepayments (5)
A1: Workpaper Cross Reference Page 5
A3: Montana-Dakota Utilities Co.
A4: MISO Attachment O Annual True-Up
A5: Working Capital (Workpaper for Page 2 of 5)
A6: Prepayments
A7: Thirteen Months Ended December 31, 2013
B10: Account | D10: 13 Month Average | F10: December 2012 | G10: January 2013 | H10: February 2013 | I10: March 2013 | J10: April 2013 | K10: May 2013 | L10: June 2013 | M10: July 2013 | N10: August 2013 | O10: September 2013 | P10: October 2013 | Q10: November 2013 | R10: December 2013
A11: Prepaid Insurance | B11: 1655 | F11: 265397 | G11: 2256571 | H11: 2047361 | I11: 1816887 | J11: 1577864 | K11: 1628873 | L11: 1401575 | M11: 1174910 | N11: 946915 | O11: 719626 | P11: 492970 | Q11: 492470 | R11: 262385
A12: Purchased Power | B12: 1656 | F12: 878931 | G12: 822668 | H12: 317168 | I12: 510177 | J12: 633453 | K12: 339532 | N12: 196304 | O12: 1507637 | P12: 1353469 | Q12: 1079611 | R12: 995035
A13: Gas Demand Charges | B13: 1658 | F13: 2692091 | M13: 2418391 | N13: 4856220 | O13: 6750121 | P13: 7332760 | Q13: 5881149 | R13: 2783013
A14: Misc Prepaid | B14: 1659 | F14: 992816 | G14: 629770 | H14: 395544 | I14: 183052 | J14: 41837 | K14: 202544 | L14: 439855 | M14: 706062 | N14: 1207305 | O14: 1405974 | P14: 1436023 | Q14: 1324522 | R14: 1033798
A15: Total Prepayments (Form 1, Page 111, Line 57(c)) | F15: =SUM(F11:F14) -> 4829235 | G15: 3709009 | H15: 2760073 | I15: 2510116 | J15: 2253154 | K15: 2170949 | L15: 1841430 | M15: 4299363 | N15: 7206744 | O15: 10383358 | P15: 10615222 | Q15: 8777752 | R15: 5074231
A17: Exclude:
A18: =A13 -> Gas Demand Charges | B18: =B13 -> 1658 | F18: 2692091 | M18: 2418391 | N18: 4856220 | O18: 6750121 | P18: 7332760 | Q18: 5881149 | R18: 2783013
A19: Misc Prepaid - Gas
A20: Prepaid Commodity Charges | B20: 1659 | F20: 988060 | G20: 628134 | H20: 395425 | I20: 181567 | J20: 41177 | K20: 200374 | L20: 435351 | M20: 702044 | N20: 976657 | O20: 1181850 | P20: 1210844 | Q20: 1083599 | R20: 665740
A21: Wyoming Electric | F21: 11995 | G21: 120589 | H21: 109460 | I21: 98331 | J21: 86589 | K21: 76966 | L21: 67227 | M21: 57488 | N21: 47749 | O21: 38010 | P21: 28270 | Q21: 28920 | R21: 19050
F22: =SUM(F18:F21) -> 3692146 | G22: =SUM(G18:G21) -> 748723 | H22: 504885 | I22: 279898 | J22: 127766 | K22: 277340 | L22: 502578 | M22: 3177923 | N22: 5880626 | O22: 7969981 | P22: 8571874 | Q22: 6993668 | R22: 3467803
A24: Total Prepayments | D24: =ROUND(AVERAGE(F24:R24),0) -> 1864263 | F24: =F15-F22 -> 1137089 | G24: =G15-G22 -> 2960286 | H24: 2255188 | I24: 2230218 | J24: 2125388 | K24: 1893609 | L24: 1338852 | M24: 1121440 | N24: 1326118 | O24: 2413377 | P24: 2043348 | Q24: 1784084 | R24: 1606428

Sheet Transmission O&M (6)
I1: Workpaper Cross Reference Page 6
A3: Montana-Dakota Utilities Co.
A4: MISO Attachment O Annual True-Up
A5: Tranmission O&M Expense (Workpaper for Page 3 of 5)
A6: Twelve Months Ended December 31, 2013
A9: FERC | E9: Total | I9: Integrated
A10: Account | C10: Account Description | E10: Company 1/ | G10: Wyoming | I10: System
A11: 560 | C11: Operation Supervision and Engineering | E11: 1209996 | G11: 17021 | I11: =E11-G11 -> 1192975
A12: 561.1 | C12: Load Dispatch - Reliability | E12: 470478 | I12: 470478
A13: 561.2 | C13: Load Dispatch - Monitor & Operate Transmission System | E13: 1007190 | G13: 64675 | I13: 942515
A14: 561.4 | C14: Scheduling, System Control & Dispatch Services | E14: 456561 | I14: 456561
A15: 561.8 | C15: Reliability, Planning and Standards Development Services | E15: 33259 | I15: 33259
A16: 562 | C16: Station Expenses | E16: 687089 | G16: 7274 | I16: 679815
A17: 563 | C17: Overhead Lines Expenses | E17: 256146 | I17: 256146
A18: 565 | C18: Transmission of Electricity by Others | E18: 1705765 | I18: 1705765
A19: 566 | C19: Misc Transmission Expense | E19: 58556 | I19: 58556
A20: 567 | C20: Rents | E20: 1653919 | I20: 1653919
A21: 568 | C21: Maintenance Supervision & Engineering | E21: 59186 | I21: 59186
A22: 570 | C22: Maintenance of Structures | E22: 686418 | G22: 37852 | I22: 648566
A23: 571 | C23: Maintenance of Station Equipment | E23: 2444097 | I23: 2444097
E24: =SUM(E11:E23) -> 10728660 | G24: =SUM(G11:G23) -> 126822 | I24: =SUM(I11:I23) -> 10601838
A26: 1/ FERC Form 1, Page 321.112.b
A28: Transmission O&M
A29: Page 3 Line 1a (LSE Expenses incl. in Transmission O&M Accts) | E29: Integrated
A30: Note V Exlusions from Transmission Expenses: | E30: System
C31: =C14 -> Scheduling, System Control & Dispatch Services | E31: =I14 -> 456561 | G31: Account 561.4
C32: =C15 -> Reliability, Planning and Standards Development Services | E32: =I15 -> 33259 | G32: Account 561.8
E33: =SUM(E31:E32) -> 489820
A36: Transmission Expenses
A37: Page 4 Line 7 Transmission Expenses included IN OATT | E37: Integrated
A38: Ancillary Services (Note L) | E38: System
C39: =C12 -> Load Dispatch - Reliability | E39: =I12 -> 470478 | G39: Account 561.1
C40: =C13 -> Load Dispatch - Monitor & Operate Transmission System | E40: =I13 -> 942515 | G40: Account 561.2
C41: Load Dispatch - Transmission Service & Scheduleing | E41: 0 | G41: Account 561.3
E42: =SUM(E39:E41) -> 1412993
A45: Schedule 1 Recoverable Expenses (Page 4 Side Box Calculations)
C46: Acct 561.1 - 561.3, 561.BA included in Line 7 | E46: =E42 -> 1412993
C47: Acct 561.BA for Schedule 24 | E47: 707859 | G47: Account 561.BA
C48: Acct 561.1 - 561.3 available for Schedule 1 | E48: =E46-E47 -> 705134
C50: Revenue Credits for Sched 1 Acct 561.1 - 561.3
C51: transactions <1 yr | E51: 0
C52: non-firm | E52: 0
C53: transactions w/ load not in divisor | E53: 52567
C54: Total Revenue Credits | E54: =SUM(E51:E53) -> 52567
C56: Net Schedule 1 Expenses (Acct 561.1-561.3 minus Credits) | E56: =E48-E54 -> 652567

Sheet A&G (7)
I1: Workpaper Cross Reference Page 7
A3: Montana-Dakota Utilities Co.
A4: MISO Attachment O Annual True-Up
A5: Administrative & General Expenses (Workpaper for Page 3 of 5)
A6: Twelve Months Ended December 31, 2013
A9: FERC | E9: Total | I9: Integrated
A10: Account | C10: Account Description | E10: Company 1/ | G10: Wyoming | I10: System
A11: 920 | C11: Administrative & General Salaries | E11: 5194296 | G11: 438608 | I11: =E11-G11 -> 4755688
A12: 921 | C12: Office Supplies & Expenses | E12: 3181729 | G12: 275213 | I12: 2906516
A13: 923 | C13: Outside Services Employed | E13: 421551 | G13: 38356 | I13: 383195
A14: 924 | C14: Property Insurance | E14: 945683 | G14: 136876 | I14: 808807
A15: 925 | C15: Injuries & Damages | E15: 1184621 | G15: 99220 | I15: 1085401
A16: 926 | C16: Employee Pensions & Benefits | E16: 6833142 | G16: 462300 | I16: 6370842
A17: 928 | C17: Regulatory Commission Expenses | E17: 850795 | G17: 164888 | I17: 685907
A18: 930.1 | C18: General Advertising Expenses | E18: 51607 | G18: 2238 | I18: 49369
A19: 930.2 | C19: Miscellaneous General Expenses | E19: 565073 | G19: 42996 | I19: 522077
A20: 931 | C20: Rents | E20: 388031 | G20: 32440 | I20: 355591
A21: 935 | C21: Maintenance of Station Equipment | E21: 676406 | G21: 44820 | I21: 631586
E22: =SUM(E11:E21) -> 20292934 | G22: =SUM(G11:G21) -> 1737955 | I22: =SUM(I11:I21) -> 18554979
A24: 1/ FERC Form 1, page 323.197.b

Sheet Reg Com & NonSafety Ad Exp (8)
D1: Workpaper Cross Reference Page 8
A3: Montana-Dakota Utilities Co.
A4: MISO Attachment O Annual True-Up
A5: Regulatory Commission Expenses & Non-Safety Ad.
A6: (Workpaper for Page 3 of 5)
A7: Twelve Months Ended December 31, 2013
D10: Integrated
D11: System
A12: Regulatory Commission
A13: Expense - Electric Utility 1/
B14: Montana | D14: 53849
B15: North Dakota | D15: 463020
B16: South Dakota | D16: 13801
D17: =SUM(D14:D16) -> 530670
B19: Exclude:
B20: Total FERC Annual Fees 2/ | D20: 187914
A22: Total Regulatory Commission Expense | D22: =D17-D20 -> 342756
A25: O&M A&G General
B26: Advertising Total Company | D26: 51607
B27: Less: Wyoming | D27: 2238
D28: =D26-D27 -> 49369
A30: Total Integrated System | D30: =D22+D28 -> 392125
A33: 1/ FERC Form 1 page 351, column h for current charges,
B34: includes FERC Annual Fees.
A35: 2/ | B35: FERC Annual Fees are included in the Regulatory
B36: Commission Expenses shown on FERC Form 1, page 351.
B37: FERC Annual Fees billed to MDU by MISO | D37: 196364
B38: FERC Annual Fees paid by MDU | D38: 3653
B39: MISO Schedule 11 | D39: =7128-1900 -> 5228
B40: Total FERC Annual Charges | D40: =SUM(D37:D39) -> 205245
B41: excluding Wyoming | D41: 17331
D42: =D40-D41 -> 187914

Sheet Other O&M Expenses (9)
L1: Workpaper Cross Reference Page 9
A3: Montana-Dakota Utilities Co.
A4: MISO Attachment O Annual True-Up
A5: Depreciation Expense & Other Taxes (Workpaper for Page 3 of 5)
A6: Twelve Months Ended December 31, 2013
F9: Form 1 Page | H9: Total | L9: Integrated
F10: Line, Col. | H10: Company | J10: Wyoming | L10: System
A11: Depreciation Expense
B12: Transmission | F12: 336.7.b | H12: 3397044 | J12: 61028 | L12: =H12-J12 -> 3336016
B14: General | F14: 336.10.f | H14: 715728 | J14: 44605 | L14: =H14-J14 -> 671123
F15: 336.1.f | H15: 312631 | J15: 35609 | L15: 277022
H16: =SUM(H14:H15) -> 1028359 | J16: =SUM(J14:J15) -> 80214 | L16: =SUM(L14:L15) -> 948145
B18: Common
C19: Electric | F19: 336.11.b | H19: 1262123 | J19: 141428 | L19: =H19-J19 -> 1120695
A21: Taxes Other than Income
B22: Labor Related
C23: Payroll
D24: Unemployment | F24: 263.i | H24: 91681
D25: Federal - FICA | F25: 263.i | H25: 2170711
H26: =SUM(H24:H25) -> 2262392 | J26: 146256 | L26: =H26-J26 -> 2116136
C27: Highway & vehicle | F27: 263.i | H27: 2893 | J27: 297 | L27: =H27-J27 -> 2596
B28: Plant Related
C29: Property | F29: 263.i | H29: 6491010 | J29: 261055 | L29: =H29-J29 -> 6229955
C30: Gross Receipts | F30: 263.i | H30: =-80160+19955+68328 -> 8123 | J30: 68328 | L30: -60205
C31: Other
D32: MT Electric
D33: MT WET Tax | F33: 263.i | H33: 116678
D34: MT Electric License | F34: 263.i | H34: 78785
H35: =SUM(H33:H34) -> 195463 | J35: 0 | L35: =H35-J35 -> 195463
D36: ND Coal Conversion | F36: 263.i | H36: =520885+405140 -> 926025 | J36: 0 | L36: 926025
D37: Secretaries of State | F37: 263.i | H37: 1540 | J37: 130 | L37: 1410
H38: =SUM(H35:H37) -> 1123028 | J38: =SUM(J35:J37) -> 130 | L38: =SUM(L35:L37) -> 1122898
C39: Payment in lieu of taxes
D40: Franchise Fees | F40: 263.i | H40: 272083 | J40: 179095 | L40: =H40-J40 -> 92988
A41: Total | H41: =H26+H27+H29+H30+H40+H38 -> 10159529 | J41: =J26+J27+J29+J30+J40+J38 -> 655161 | L41: =L26+L27+L29+L30+L40+L38 -> 9504368

Sheet Production Related Trans (10)
C1: Workpaper Cross Reference Page 10
A3: Montana-Dakota Utilities Co.
A4: MISO Attachment O Annual True-Up
A5: Production-Related Plant Removed from Transmission
A6: (Workpaper for Page 4 of 5)
A7: Twelve Months Ended December 31, 2013
A10: Facility | C10: 2013
A12: Glendive Turbine Junction
A13: Transmission Function FERC 353 | C13: 804955.61
A15: Heskett Station
A16: Transmission Function FERC 353 | C16: 1335942.86
A18: Miles City Turbine
A19: Transmission Function FERC 353 | C19: 112666.21
A21: Lewis & Clark Switchyard
A22: Transmission Function FERC 353 | C22: 424864.59
A24: Coyote Aux. Power 115KV Tap Line
A25: Towers & Fixtures Function FERC 3540 | C25: 2122.09
A26: Transmission Function FERC 355 | C26: 3284.29
A27: Overhead Conductor & Device Function FERC 3560 | C27: 6874.08
A28: Total | C28: =SUM(C25:C27) -> 12280.46
A30: Big Stone Plant Intake Line
A31: Transmission Function FERC 355 | C31: 9512.84
A32: Overhead Conductor & Device Function FERC 3560 | C32: 247
A33: Total | C33: =SUM(C31:C32) -> 9759.84
A35: Coyote Surge Pond Line
A36: Land Rights Function FERC 3502 | C36: 138
A37: Transmission Function FERC 355 | C37: 4258.86
A38: Overhead Conductor & Device Function FERC 3560 | C38: 2591.44
A39: Total | C39: =SUM(C36:C38) -> 6988.3
A41: Diamond Willow Substation
A42: Transmission Function FERC 353 | C42: 3279895.7
A43: Transmission Function FERC 3501 | C43: 1618.18
C44: =SUM(C42:C43) -> 3281513.88
A46: Cedar Hills Substation
A47: Transmission Function FERC 353 | C47: 2046675.76
A48: Transmission Function FERC 3501 | C48: 4675.44
A49: Transmission Function FERC 3502 | C49: 1052.63
C50: =SUM(C47:C49) -> 2052403.83
A52: Ormat Transmission Line
A53: Transmission Function FERC 353 to Power Production | C53: 210979.45
A54: Transmission Function FERC 355 | C54: 235953.37
A55: Overhead Conductor & Device Function FERC 3560 | C55: 163705.36
A56: Land Rights Function FERC 3502 | C56: 574.9
C57: =SUM(C53:C56) -> 611213.08
A60: Total | C60: =C13+C16+C19+C22+C28+C33+C39+C44+C50+C57 -> 8652588.66

Sheet Acct 456.1 (11)
H1: Workpaper Cross Reference Page 11
A3: Montana-Dakota Utilities Co.
A4: MISO Attachment O Annual True-Up
A5: Other Electric Revenues Account 456.1 (Workpaper for Page 4 of 5)
A6: ='Other O&M Expenses (9)'!A6 -> Twelve Months Ended December 31, 2013
F10: Form 1 Page | H10: Total
A11: Acct 456.1 Transmission of Electricity for Others | F11: Line, Col. | H11: Revenues
B13: a. | C13: Transmission charges for all transmission transactions | F13: 330.x.n
D14: WAPA | H14: 231631
D15: Basin Electric Cooperative | H15: 105678
D16: Powder River Energy Corp | H16: 31814
D17: MISO | H17: 2170988
H18: =SUM(H14:H17) -> 2540111
D19: Exclude:
D20: Powder River Energy Corp 1/ | H20: =H16 -> 31814
C22: Total included in Line 35, Page 4 of Attachment O | H22: =H18-H20 -> 2508297
B24: b. | C24: Transmission charges for all transmission transactions included in Divisor 1 on Page 1 | F24: 330.x.n | H24: 0
B26: c. | C26: Transmission charges from Schedules associated with Attachment GG (Note X) 2/
B28: d. | C28: Transmission charges from Schedules associated with Attachment MM (Note Z) 2/
A30: Total of (a) - (b) - (c) - (d) | H30: =H22-H24-H26-H28 -> 2508297
A33: 1/ Applicable to Wyoming.
A34: 2/ Revenue from Attachments GG and MM are not included in Account 456.1.
A36: Note:
B37: X | C37: Removes from revenue credits revenue that are distributed pursuant to Schedules associated with Attachment GG
C38: of the Midwest ISO Tariff, since the Transmission Owner's Attachment O revenue requirements have already been
C39: reduced by the Attachment GG revenue requirements.
B40: Y | C40: Pursuant to Attachment MM of the Midwest ISO Tariff, removes dollar amount of revenue requirements
C41: calculated pursuant to Attachment MM.

Sheet Wages & Salary (12)
J1: Workpaper Cross Reference Page 12
A3: Montana-Dakota Utilities Co.
A4: MISO Attachment O Annual True-Up
A5: Wages & Salary (Workpaper for Page 4 of 5)
A6: ='Other O&M Expenses (9)'!A6 -> Twelve Months Ended December 31, 2013
D9: Form 1 | J9: Integrated
D10: Page #, Line # | F10: FERC Form1 | H10: Wyoming | J10: System
A11: Production | D11: 354.20.b | F11: 8000075 | H11: 62772 | J11: =F11-H11 -> 7937303
A12: Transmission | D12: 354.21.b | F12: 3459007 | H12: 91292 | J12: =F12-H12 -> 3367715
A13: Distribution | D13: 354.23.b | F13: 8947181 | H13: 913682 | J13: 8033499
A14: Other
B15: Customer Accounts | D15: 354.24.b | F15: 1988953 | H15: 224789 | J15: 1764164
B16: Customer Service | D16: 354.25.b | F16: 111630 | H16: 3864 | J16: 107766
B17: Sales | D17: 354.26.b | F17: 79618 | H17: 6313 | J17: 73305
F18: =SUM(F11:F17) -> 22586464 | H18: =SUM(H11:H17) -> 1302712 | J18: =SUM(J11:J17) -> 21283752

Sheet Common Plant Allocator (13)
J1: Workpaper Cross Reference Page 13
A3: Montana-Dakota Utilities Co.
A4: MISO Attachment O Annual True-Up
A5: Common Plant Allocator (Workpaper for Page 4 of 5)
A6: ='Other O&M Expenses (9)'!A6 -> Twelve Months Ended December 31, 2013
D9: Form 1 Page, | F9: Form 1 | J9: Integrated
D10: Line, Col. | F10: Balance | H10: Wyoming | J10: System
A11: Plant - Classified
B12: Electric | D12: 200.3.c | F12: 1058520652 | H12: =1220901+196909 -> 1417810 | J12: =F12-H12 -> 1057102842
B13: Gas | D13: 201.3.d | F13: 373491829 | H13: =244018+91380 -> 335398 | J13: =F13-H13 -> 373156431
F14: =SUM(F12:F13) -> 1432012481 | H14: =SUM(H12:H13) -> 1753208 | J14: =SUM(J12:J13) -> 1430259273

Sheet SIT Calculation (14)
O1: Workpaper Cross Reference Page 14
B3: Montana-Dakota Utilities Co.
B4: MISO Attchment O
B5: 2013 Update
B6: SIT Calculation
B7: Supporting Workpaper
A11: Page 5 Note K - Federal and State Income Tax Rates
A13: Calculation of Composite State Rate.
C14: 2013
B15: State Tax Rate | C15: Allocation %
A16: South Dakota | B16: 0 | C16: 0.05600349 | D16: =$B16*C16 -> 0
A17: North Dakota | B17: 0.0453 | C17: 0.7125699 | D17: =$B17*C17 -> 0.03227941647
A18: Montana | B18: 0.0675 | C18: 0.23142661 | D18: =$B18*C18 -> 0.01562129618
D19: =SUM(D16:D18) -> 0.04790071265
A24: Note K: | B24: The currently effective income tax rate, where FIT is the Federal income tax rate; SIT is the State income tax rate, and p =
B25: "the percentage of federal income tax deductible for state income taxes". If the utility is taxed in more than one state it must attach a
B26: work paper showing the name of each state and how the blended or composite SIT was developed. Furthermore, a utility that
B27: elected to utilize amortization of tax credits against taxable income, rather than book tax credits to Account No. 255 and reduce
B28: rate base, must reduce its income tax expense by the amount of the Amortized Investment Tax Credit (Form 1, 266.8.f)
B29: multiplied by (1/1-T) (page 3, line 26). | S29: SIT work papers if required
F30: Inputs Required: | G30: FIT = | H30: 0.35
G31: SIT= | H31: =ROUND(D19,4) -> 0.0479 | I31: (State Income Tax Rate or Composite SIT)
G32: p = | H32: 0 | I32: (percent of federal income tax deductible for state purposes)

Sheet CWIP 13 Month Balances (15)
D1: Workpaper Cross Reference Page 15
A4: Montana-Dakota Utilities Co.
A5: MISO Attachment O Annual True-Up
A6: MTEP Project ID 2220 (Workpaper for Page 2 of 5)
A7: Thirteen Month Average Balances
A8: December 2012 through December 2013
D11: Total
A12: CWIP - Attachment MM
B13: December 2012 | D13: 538254
B14: January 2013 | D14: 585135
B15: February | D15: 672834
B16: March | D16: 829071
B17: April | D17: 923609
B18: May | D18: 1092222
B19: June | D19: 1186426
B20: July | D20: 1337478
B21: August | D21: 1727295
B22: September | D22: 2048513
B23: October | D23: 2214577
B24: November | D24: 2507013
B25: December | D25: 2637128
A26: 13 Month Average | D26: =ROUND(AVERAGE(D13:D25),0) -> 1407658

Sheet Cap Structure 2013 (16)
M1: Workpaper Cross Reference Page 16
A3: Montana-Dakota Utilities Co.
A4: Capital Structure
C6: Long Term | E6: Preferred | G6: Proprietary | I6: Account | K6: Long Term | M6: Preferred
C7: Interest* | E7: Dividends | G7: Capital | I7: 123.1 | K7: Debt | M7: Stock
A8: December 2012 | C8: 1503033.78 | E8: 57083.33 | G8: 2633248256 | I8: 2253293721 | K8: 356867451.9 | M8: 15000000
A9: January 2013 | C9: 1494692.81 | E9: 57084.1 | G9: 2647152370 | I9: 2260056473 | K9: 334866845.1 | M9: 15000000
A10: February | C10: 1488088.66 | E10: 57083.33 | G10: 2638350945 | I10: 2253897490 | K10: 338866241.9 | M10: 15000000
A11: March | C11: 1492523.33 | E11: 57083.33 | G11: 2648233667 | I11: 2254862038 | K11: 352865398.9 | M11: 15000000
A12: April | C12: 1488337.68 | E12: 57084.09 | G12: 2658267783 | I12: 2262642875 | K12: 327364788.3 | M12: 15000000
A13: May | C13: 1487701.15 | E13: 57083.33 | G13: 2649185421 | I13: 2259402309 | K13: 329864096 | M13: 15000000
A14: June | C14: 1488453.71 | E14: 57083.33 | G14: 2663720447 | I14: 2273154306 | K14: 336363478.8 | M14: 15000000
A15: July | C15: 1496844.71 | E15: 57084.07 | G15: 2686494139 | I15: 2291601642 | K15: 366362780 | M15: 15000000
A16: August | C16: 1500632.68 | E16: 57083.31 | G16: 2678560786 | I16: 2288804769 | K16: 385362156.1 | M16: 15000000
A17: September | C17: 1538080.11 | E17: 57083.33 | G17: 2716593015 | I17: 2324007616 | K17: 400361529.1 | M17: 15000000
A18: October | C18: 1550207.61 | E18: 57084.07 | G18: 2756412047 | I18: 2361921764 | K18: 419360820.6 | M18: 15000000
A19: November | C19: 1554257.52 | E19: 57083.33 | G19: 2758617982 | I19: 2364414874 | K19: 458360186.8 | M19: 15000000
A20: December | C20: 1560474.58 | E20: 57083.33 | G20: 2808164204 | I20: 2380828521 | K20: 434705971.7 | M20: 15000000
A21: Total 2013 | C21: =SUM(C9:C20) -> 18140294.55 | E21: =SUM(E9:E20) -> 685002.95
A23: 13 Month Avg. | G23: =AVERAGE(G8:G20) -> 2687923159 | I23: =AVERAGE(I8:I20) -> 2294529877 | K23: =AVERAGE(K8:K20) -> 372428595.8 | M23: =AVERAGE(M8:M20) -> 15000000
A25: *Long term interest includes commitment fees

Sheet Acct 454 (17)
E1: Workpaper Cross Reference Page 17
A3: Montana-Dakota Utilities Co.
A4: MISO Attachment O Annual True-Up
A5: Summary of Account 4540 Rent from Property (Workpaper Page 4 of 5)
A6: Twelve Months Ended Decembe 31, 2013
A10: 4540.008 | B10: Joint Use Agreements
C11: Integrated System | E11: -1807969.5
C12: Wyoming | E12: -22118.25
E13: =SUM(E11:E12) -> -1830087.75
A15: Account 4540 (excluding 4540.008) | E15: -3587137.87
A17: Total Object Account 4540 Rent from Property | E17: =E13+E15 -> -5417225.62

Sheet 12 Coincident Peaks (18)
D1: Workpaper Cross Reference Page 18
A3: Montana-Dakota Utilities Co.
A4: MISO Attachment O Annual True-Up
A5: Twelve Coincident Peaks
A6: Twelve Months Ended Decembe 31, 2013
D9: 2013
A10: January | D10: 516170
A11: February | D11: 481484
A12: March | D12: 450925
A13: April | D13: 425338
A14: May | D14: 397924
A15: June | D15: 455554
A16: July | D16: 539454
A17: August | D17: 546914
A18: September | D18: 540529
A19: October | D19: 431349
A20: November | D20: 496446
A21: December | D21: 559684
A22: Average | D22: =ROUND(AVERAGE(D10:D21),0) -> 486814
